{"text_format":"1","workbook":"xlsx","n_sheets":3,"sheets":["Remont","DANE","Remont - przykładowy"],"not_rendered":{"charts":0,"images":0,"macros":1,"external_links":0,"defined_names":4,"comments":0,"pivot_tables":0},"unopened":[],"bounds":{"document_bytes":16777216,"sheet_cells":100000,"rows_first":2000,"rows_last":500,"rows_between":2000,"halvings":0,"cell_chars":16384,"cell_head_chars":4096},"cells_cut":0,"cells_raw":0,"read":"whole","date_system":"1900"}

{"sheet":"Remont","index":0,"n_rows":142,"n_cols":37,"rows_kept":142,"cut":false,"hidden":false,"merged":[[20,1,20,7],[20,9,20,15],[19,16,19,25],[20,16,20,24],[117,1,117,25],[118,1,118,9],[119,1,119,9],[120,1,120,9],[121,1,121,9],[118,10,118,16],[119,10,119,16],[120,10,120,16],[121,10,121,16],[27,0,27,9],[27,10,27,14],[27,15,27,20],[28,0,28,9],[28,10,28,20],[29,1,29,25],[42,0,42,2],[43,0,43,2],[31,1,31,3],[16,0,17,5],[1,0,1,3],[16,15,17,15],[27,21,28,25],[76,1,76,11],[77,1,77,11],[6,1,6,25],[44,0,44,2],[40,3,40,7],[41,3,41,7],[42,3,42,7],[43,3,43,7],[40,8,40,12],[41,8,41,12],[42,8,42,12],[43,8,43,12],[18,1,18,25],[8,0,8,2],[8,3,8,25],[9,0,9,2],[9,3,9,25],[13,1,13,25],[32,20,32,25],[19,0,19,15],[38,0,38,25],[39,0,40,2],[41,0,41,2],[43,13,43,19],[44,13,44,19],[43,20,43,25],[44,20,44,25],[14,0,14,25],[15,1,15,25],[16,17,16,21],[16,22,16,25],[17,17,17,21],[17,22,17,25],[16,6,17,14],[24,1,24,9],[30,1,30,19],[30,20,30,25],[26,10,26,14],[26,15,26,20],[26,21,26,23],[26,24,26,25],[25,1,25,9],[26,1,26,9],[25,10,25,14],[25,15,25,20],[25,21,25,23],[25,24,25,25],[24,10,24,14],[24,15,24,20],[24,21,24,23],[24,24,24,25],[31,4,31,25],[32,1,32,19],[10,1,10,25],[7,0,7,2],[7,3,7,6],[7,7,7,9],[7,10,7,17],[7,18,7,20],[7,21,7,25],[21,1,21,25],[22,10,23,14],[22,15,23,20],[22,21,22,25],[23,21,23,23],[23,24,23,25],[22,0,23,0],[22,1,23,9],[11,0,11,3],[12,0,12,3],[11,4,11,6],[12,4,12,6],[11,7,11,10],[12,7,12,10],[11,11,11,16],[12,11,12,16],[11,17,11,25],[0,1,0,3],[0,4,0,25],[1,4,1,25],[2,0,2,25],[3,0,3,25],[4,0,5,2],[4,3,5,14],[4,15,5,16],[4,17,5,25],[12,17,12,25],[53,1,53,25],[49,20,49,21],[49,22,49,23],[49,24,49,25],[45,1,45,25],[46,0,47,0],[33,1,33,3],[33,4,33,25],[34,1,34,19],[34,20,34,25],[35,1,35,3],[35,4,35,25],[36,1,36,19],[36,20,36,25],[37,1,37,25],[39,13,40,19],[41,13,41,19],[42,13,42,19],[39,20,40,25],[41,20,41,25],[42,20,42,25],[47,20,47,21],[52,1,52,25],[44,3,44,12],[39,3,39,12],[141,0,141,25],[142,0,142,25],[136,23,136,25],[137,23,137,25],[134,23,134,25],[135,23,135,25],[139,0,139,25],[140,1,140,25],[133,3,133,22],[134,3,134,22],[135,3,135,22],[136,3,136,22],[137,3,137,22],[118,17,118,25],[132,3,132,22],[133,23,133,25],[129,23,129,25],[130,3,130,22],[122,1,122,25],[132,23,132,25],[131,23,131,25],[119,17,119,25],[123,0,123,25],[124,2,124,25],[125,2,125,25],[126,2,126,25],[127,2,127,25],[128,2,128,25],[129,3,129,22],[131,3,131,22],[120,17,120,25],[121,17,121,25],[62,23,62,25],[60,23,60,25],[50,20,50,21],[61,1,61,22],[62,2,62,22],[46,1,47,11],[48,1,48,11],[49,1,49,11],[50,1,50,11],[46,12,47,19],[48,12,48,19],[50,22,50,23],[50,24,50,25],[51,1,51,22],[51,23,51,25],[47,22,47,23],[95,1,95,25],[96,4,96,7],[96,8,96,25],[91,1,91,4],[94,22,94,25],[92,22,92,25],[93,22,93,25],[92,1,93,21],[63,1,63,25],[64,2,64,22],[65,1,65,4],[65,6,65,25],[66,1,66,25],[64,23,64,25],[94,1,94,21],[67,1,67,9],[68,1,68,9],[67,10,67,12],[68,10,68,12],[67,13,67,25],[68,13,68,25],[70,1,70,12],[70,13,70,25],[84,1,84,25],[106,4,106,25],[104,1,104,3],[104,4,104,25],[103,1,103,25],[105,1,105,25],[96,1,97,3],[97,4,97,7],[97,8,97,25],[101,1,102,3],[102,4,102,7],[102,8,102,25],[106,1,106,3],[100,1,100,25],[101,4,101,7],[101,8,101,25],[98,1,98,25],[99,1,99,3],[112,4,112,7],[112,8,112,25],[109,4,109,7],[109,8,109,25],[114,1,114,25],[111,1,111,25],[109,1,110,3],[112,1,113,3],[115,1,116,3],[110,4,110,7],[113,4,113,7],[116,4,116,7],[110,8,110,25],[113,8,113,25],[116,8,116,25],[49,12,49,19],[50,12,50,19],[46,20,46,25],[61,23,61,25],[57,1,57,25],[58,2,58,22],[59,2,59,22],[60,2,60,22],[54,1,54,25],[55,1,55,25],[47,24,47,25],[48,20,48,21],[48,22,48,23],[48,24,48,25],[58,23,58,25],[59,23,59,25],[56,1,56,4],[56,6,56,25],[130,23,130,25],[92,0,93,0],[99,4,99,25],[72,0,72,25],[74,1,74,3],[74,4,74,25],[76,12,76,14],[77,12,77,14],[76,15,76,25],[77,15,77,25],[87,1,87,25],[81,1,81,3],[81,6,81,25],[83,1,83,3],[83,6,83,25],[86,1,86,3],[86,6,86,25],[89,22,89,25],[90,22,90,25],[108,1,108,25],[107,1,107,4],[107,6,107,25],[115,4,115,7],[115,8,115,25],[88,2,88,21],[89,2,89,21],[88,22,88,25],[90,2,90,21],[91,6,91,25],[85,2,85,25],[69,1,69,25],[71,1,71,25],[73,1,73,25],[75,1,75,25],[78,1,78,4],[78,6,78,25],[79,1,79,25],[80,2,80,25],[82,2,82,25]]}
["!"," UWAGA: ",null,null,"PRZED WYPEŁNIENIEM WNIOSKU NALEŻY ZAPOZNAĆ SIĘ Z INSTRUKCJĄ ."]
[null,null,null,null,"PLIK ZOSTAŁ ZABEZPIECZONY PRZED EDYTOWANIEM. \nPROSZĘ NIE USUWAĆ ZABEZPIECZEŃ I SAMODZIELNIE NIE EDYTOWAĆ PLIKU."]
["WNIOSEK O DOFINANSOWANIE W RAMACH RZĄDOWEGO FUNDUSZU ROZWOJU DRÓG"]
["REMONT"]
["PIECZĘĆ WPŁYWU \nDO URZĘDU \nWOJEWÓDZKIEGO",null,null,null,null,null,null,null,null,null,null,null,null,null,null,"NR EWIDENCYJNY \nWNIOSKU"]
[]
["1. ","NAZWA I ADRES JEDNOSTKI SAMORZĄDU TERYTORIALNEGO"]
["POWIAT ",null,null,null,null,null,null,"GMINA ",null,null,null,null,null,null,null,null,null,null,"NR TERC ",null,null,{"$f":"IFERROR(VLOOKUP(CONCATENATE(D8&K8),DANE!$A$70:$J$184,6,FALSE),\"\")","v":""}]
["NAZWA ",null,null,null,null,null,null,null,null,null,null,null,null,null,null,null,null,null,null,null,null,null,null,null,null,null,{"$f":"LEN(D9)","v":0},"z",90]
["ADRES ",null,null,null,null,null,null,null,null,null,null,null,null,null,null,null,null,null,null,null,null,null,null,null,null,null,{"$f":"LEN(D10)","v":0},"z",90]
["2. ","KATEGORIA, NUMER ORAZ LOKALIZACJA DROGI"]
["KATEGORIA",null,null,null,"NR DROGI",null,null,"POWIAT ",null,null,null,"GMINA",null,null,null,null,null,"MIEJSCOWOŚĆ"]
[]
["3. ","TYTUŁ ZADANIA "]
[null,null,null,null,null,null,null,null,null,null,null,null,null,null,null,null,null,null,null,null,null,null,null,null,null,null,{"$f":"LEN(A15)","v":0},"z",300]
["4. ","PRZEWIDYWANY OKRES REALIZACJI ZADANIA (rozpoczęcie i zakończenie realizacji zadania)"]
[null,null,null,null,null,null,"zadanie jednoroczne realizowane    ",null,null,null,null,null,null,null,null,null,"od",null,null,null,null,null,2023,null,null,null,null,null,null,null,null,null,null,null,{"$f":"IF(R17=\"stycznia\",1,IF(R17=\"lutego\",2,IF(R17=\"marca\",3,IF(R17=\"kwietnia\",4,IF(R17=\"maja\",5,IF(R17=\"czerwca\",6,IF(R17=\"lipca\",7,IF(R17=\"sierpnia\",8,IF(R17=\"września\",9,IF(R17=\"października\",10,IF(R17=\"listopada\",11,IF(R17=\"grudnia\",12,\"\"))))))))))))","v":""},{"$f":"DATE(W17,AI17,1)","v":{"$error":"#VALUE!"}},{"$f":"DATEDIF(AJ17,AJ18,\"m\")","v":{"$error":"#VALUE!"}}]
[null,null,null,null,null,null,null,null,null,null,null,null,null,null,null,null,"do",null,null,null,null,null,null,null,null,null,null,null,null,null,null,null,null,null,{"$f":"IF(R18=\"stycznia\",1,IF(R18=\"lutego\",2,IF(R18=\"marca\",3,IF(R18=\"kwietnia\",4,IF(R18=\"maja\",5,IF(R18=\"czerwca\",6,IF(R18=\"lipca\",7,IF(R18=\"sierpnia\",8,IF(R18=\"września\",9,IF(R18=\"października\",10,IF(R18=\"listopada\",11,IF(R18=\"grudnia\",12,\"\"))))))))))))","v":""},{"$f":"DATE(W18,AI18,1)","v":{"$error":"#VALUE!"}},{"$f":"IFERROR(IF(AK17<12,\"OK\",\"BŁĄD\"),\"liczba\")","v":"liczba"}]
["5. ","DŁUGOŚĆ ODCINKA DROGI OBJĘTEGO ZADANIEM, WG RODZAJU ROBÓT BUDOWLANYCH [km]"]
["RZECZYWISTY KILOMETRAŻ W KTÓRYM ZNAJDUJE SIĘ REMONTOWANY ODCINEK DROGI",null,null,null,null,null,null,null,null,null,null,null,null,null,null,null,"DŁUGOŚĆ ODCINKA DROGI OBJĘTEGO ZADANIEM - REMONT"]
["od",null,null,null,null,null,null,null,"do",null,null,null,null,null,null,null,null,null,null,null,null,null,null,null,null,"km"]
["6. ","PRZEWIDYWANY HARMONOGRAM RZECZOWO-FINANSOWY REALIZACJI ZADANIA"]
["Lp.","ELEMENTY I RODZAJE ROBÓT",null,null,null,null,null,null,null,null,"KOSZT KWALIFIKOWALNY\n [zł]",null,null,null,null,"KOSZT NIEKWALIFIKOWALNY\n [zł]",null,null,null,null,null,"ZAKOŃCZENIE REALIZACJI "]
[null,null,null,null,null,null,null,null,null,null,null,null,null,null,null,null,null,null,null,null,null,"miesiąc",null,null,"rok"]
["1.","Roboty budowlane"]
["2.","Nadzór inwestorski (wszystkie branże)"]
["3.","Tablice informacyjne"]
["SUMA ",null,null,null,null,null,null,null,null,null,{"$f":"SUM(K25:O27)","v":0},null,null,null,null,{"$f":"SUM(P25:U27)","v":0}]
["OGÓŁEM ",null,null,null,null,null,null,null,null,null,{"$f":"SUM(K28:U28)","v":0}]
["7. ","PRZEWIDYWANE KOSZTY REALIZACJI ZADANIA BRUTTO - WYDATKI KWALIFIKOWALNE [zł]"]
["A.","ŁĄCZNY KOSZT REALIZACJI ZADANIA [zł]",null,null,null,null,null,null,null,null,null,null,null,null,null,null,null,null,null,null,{"$f":"IF(K28=0,\"\",K28)","v":""}]
[null,"SŁOWNIE :",null,null,{"$f":"IF(OR(U31=0,U31=\"\"),\"\",Slownie(U31))","v":""}]
["B.","KWOTA WNIOSKOWANEGO DOFINANSOWANIA [zł]",null,null,null,null,null,null,null,null,null,null,null,null,null,null,null,null,null,null,{"$f":"IF(OR(U31=\"\",U37=\"\"),\"\",FLOOR((U31*U37),1))","v":""}]
[null,"SŁOWNIE :",null,null,{"$f":"IF(OR(U33=0,U33=\"\"),\" \",Slownie(U33))","v":" "}]
["C.","KWOTA WKŁADU WŁASNEGO [zł]",null,null,null,null,null,null,null,null,null,null,null,null,null,null,null,null,null,null,{"$f":"IF(OR(U31=\"\",U37=\"\"),\"\",U31-U33)","v":""}]
[null,"SŁOWNIE :",null,null,{"$f":"IF(OR(U35=0,U35=\"\"),\" \",Slownie(U35))","v":" "}]
["D.","UDZIAŁ DOFINANSOWANIA W KOSZTACH KWALIFIKOWALNYCH ZADANIA [%]",null,null,null,null,null,null,null,null,null,null,null,null,null,null,null,null,null,null,{"$f":"IFERROR(VLOOKUP(CONCATENATE(D8&K8),DANE!$A$70:$J$184,10,FALSE),\"\")","v":""}]
["8. ","PRZEWIDYWANY TERMIN DOKONYWANIA WYPŁAT NA RZECZ WYKONAWCY ZADANIA"]
["KWOTA DO WYPŁATY W DANYM ROKU NA RZECZ WYKONAWCY ZADANIA "]
["ROK",null,null,"KWALIFIKOWALNE",null,null,null,null,null,null,null,null,null,"NIEKWALIFIKOWALNE",null,null,null,null,null,null,"OGÓŁEM"]
[null,null,null,"DOFINANSOWANIE",null,null,null,null,"ŚRODKI WŁASNE"]
[2023,null,null,null,null,null,null,null,null,null,null,null,null,null,null,null,null,null,null,null,{"$f":"IF(AND(D42=\"\",I42=\"\",N42=\"\"),\"\",SUM(D42:T42))","v":""}]
[2024,null,null,null,null,null,null,null,null,null,null,null,null,null,null,null,null,null,null,null,{"$f":"IF(AND(D43=\"\",I43=\"\",N43=\"\"),\"\",SUM(D43:T43))","v":""}]
["SUMA",null,null,{"$f":"SUM(D42:H43)","v":0},null,null,null,null,{"$f":"SUM(I42:M43)","v":0},null,null,null,null,null,null,null,null,null,null,null,null,null,null,null,null,null,null,null,null,null,null,null,null,null,{"$f":"IF(U33=\"\",\"ok\",IF(D44<>U33,\"błąd\",\"ok\"))","v":"ok"},{"$f":"IF(U35=\"\",\"ok\",IF(I44<>U35,\"błąd\",\"ok\"))","v":"ok"}]
["ŁĄCZNIE",null,null,{"$f":"D44+I44","v":0},null,null,null,null,null,null,null,null,null,{"$f":"SUM(N42:T43)","v":0},null,null,null,null,null,null,{"$f":"SUM(U42:Z43)","v":0},null,null,null,null,null,null,null,null,null,null,null,null,null,{"$f":"IF(D45<>K28,\"błąd\",\"ok\")","v":"ok"},{"$f":"IF(N45<>P28,\"błąd\",\"ok\")","v":"ok"},{"$f":"IF(U45<>K29,\"błąd\",\"ok\")","v":"ok"}]
["9.\n","INFORMACJA O DOPEŁNIENIU WYMOGÓW, JAKIE W ZWIĄZKU Z PLANOWANĄ REALIZACJĄ ZADANIA WYNIKAJĄ Z OBOWIĄZUJĄCYCH PRZEPISÓW PRAWA"]
[null,"Rodzaj dokumentu",null,null,null,null,null,null,null,null,null,null,"nr dokumentu / \nznak dokumentu \n(jeśli dotyczy)",null,null,null,null,null,null,null,"data dokumentu (wydania, zatwierdzenia lub opracowania)"]
[null,null,null,null,null,null,null,null,null,null,null,null,null,null,null,null,null,null,null,null,"dzień",null,"miesiąc",null,"rok"]
["1.","Prawomocna decyzja o pozoleniu na budowę lub zgłoszenie robót budowlanych z potwierdzeniem/poświadczeniem o braku sprzeciwu"]
["2.","Kosztorys inwestorski"]
["3.","Projekt stałej organizacji ruchu lub pismo organu uprawnionego do zatwierdzenia organizacji ruchu"]
["4.","Czy wnioskodawca posiada tytuł prawny do nieruchomości wskazanych w oświadczeniu o dysponowaniu nieruchomością na cele budowlane zgodnie z art. 3 Prawa budowlanego, tj. tytuł prawny wynikający z prawa własności, użytkowania wieczystego, zarządu, ograniczonego prawa rzeczowego albo stosunku zobowiązaniowego, przewidującego uprawnienia do wykonywania robót budowlanych, ponadto tytuł ten nie wynika z posiadania samoistnego/władania lub z mocy prawa na podst. art. 73 ustawy z dnia 13 października 1998 r. Przepisy wprowadzające ustawy reformujące administrację publiczną (dotyczy sytuacji gdy jst nie posiada decyzji potwierdzającej ten fakt)"]
["10.\n ","OPIS ZADANIA OBEJMUJĄCY STAN ISTNIEJĄCY ORAZ PROJEKTOWANY WRAZ Z UZASADNIENIEM REALIZACJI ZADANIA"]
["Opis",null,null,null,null,null,null,null,null,null,null,null,null,null,null,null,null,null,null,null,null,null,null,null,null,null,{"$f":"LEN(B54)","v":0},"z",700]
["Uzasadnienie ",null,null,null,null,null,null,null,null,null,null,null,null,null,null,null,null,null,null,null,null,null,null,null,null,null,{"$f":"LEN(B55)","v":0},"z",700]
["11. ","CHARAKTERYSTYKA ZADANIA WEDŁUG KRYTERIÓW OCENY MERYTORYCZNEJ"]
[null,"Kryterium nr 1",null,null,null,"-","Wpływ zadania na poprawę bezpieczeństwa ruchu drogowego"]
["A. ","Ryzyko społeczne wypadków [TAK/NIE]"]
[null,"•","Odcinek przebiega przez powiat o bardzo dużym lub dużym poziomie ryzyka społecznego - wypadki ogółem, ofiary śmiertelne i ciężko ranne: klasa ryzyka D i E"]
[null,"•","Odcinek przebiega przez powiat o bardzo dużym lub dużym poziomie ryzyka społecznego - wypadki z udziałem pieszych: klasa ryzyka D i E"]
[null,"•","Odcinek przebiega przez powiat o bardzo dużym lub dużym poziomie ryzyka społecznego - wypadki spowodowane zbyt dużą prędkością: klasa ryzyka D i E "]
["B.\n\n","Realizacja projektu obejmuje, zgłoszenie określone w Programie Likwidacji Miejsc Niebezpiecznych na Drogach Lokalnych w województwie świętokrzyskim 2019 - 2023 Bezpieczni na 5+ [TAK/NIE]"]
[null,"•","Pozycja, pod którą zgłoszenie znajduje się w Programie Bezpieczni na 5+"]
["C. ","Zwiększenie bezpieczeństwa uczestników ruchu drogowego [TAK/NIE]"]
[null,"•","W ramach zadania nastąpi remont przejścia dla pieszych lub/i przejazdu dla rowerzystów"]
[null,"Kryterium nr 2",null,null,null,"-","Znaczenie zadania dla rozwoju spójnej sieci dróg publicznych "]
["A.\n ","Odcinek ma bezpośrednie połączenie z drogą wyższego rzędu lub stanowi kontynuację remontu drogi \nw ramach wcześniej złożonych wniosków o dofinansowanie w ramach RFRD"]
[null,"bezpośrednie połączenie z drogą wyższego rzędu",null,null,null,null,null,null,null,null,null,null,null,null,null,null,null,null,null,null,null,null,null,null,null,null,{"$f":"LEN(N68)","v":0},"z",60]
[null,"kontynuacja drogi w ramach wcześniejszych umów dofinansowania z RFRD",null,null,null,null,null,null,null,null,null,null,null,null,null,null,null,null,null,null,null,null,null,null,null,null,{"$f":"LEN(N69)","v":0},"z",90]
["B. \n","Odcinek biegnie przez gminę, dla której wskaźnik peryferyjności czasowej jest mniejszy niż 30 min., mieści się w przedziale 30 do 50 minut, jest większy niż 50 min."]
[null,"wskaźnik peryferyjności czasowej:"]
["C. \n","Przewidywane znaczenie wnioskowanego odcinka drogi dla rozwoju społeczno - gospodarczego województwa"]
[null,null,null,null,null,null,null,null,null,null,null,null,null,null,null,null,null,null,null,null,null,null,null,null,null,null,{"$f":"LEN(A73)","v":0},"z",400]
["D. ","Odcinek stanowić będzie zamknięcie spójnego ciągu komunikacyjnego"]
[null,null,null,null,null,null,null,null,null,null,null,null,null,null,null,null,null,null,null,null,null,null,null,null,null,null,{"$f":"LEN(E75)","v":0},"z",250]
["E.\n ","Droga została uszkodzona w wyniku działania niekorzystnych zjawisk atmosferycznych i jest ujęta \nw protokole strat potwierdzonym przez Wojewodę Świętokrzyskiego"]
[null,"uszkodzona w wyniku działania niekorzystnych zjawisk atmosferycznych ",null,null,null,null,null,null,null,null,null,null,null,null,null,null,null,null,null,null,null,null,null,null,null,null,{"$f":"LEN(P77)","v":0},"z",60]
[null,"i ujęta w protokole strat potwierdzonym przez Wojewodę Świętokrzyskiego",null,null,null,null,null,null,null,null,null,null,null,null,null,null,null,null,null,null,null,null,null,null,null,null,{"$f":"LEN(P78)","v":0},"z",60]
[null,"Kryterium nr 3\n",null,null,null,"-","Podnoszenie standardów technicznych dróg oraz zachowanie ich jednorodności pod względem spełniania tych standardów"]
["A. ","Skrzyżowania:"]
[null,"•","remontowane skrzyżowania zwykłe z drogami publicznymi"]
[null,null,null,null,null,"szt.",null,null,null,null,null,null,null,null,null,null,null,null,null,null,null,null,null,null,null,null,{"$f":"LEN(G82)","v":0},"z",400]
[null,"•","remontowane skrzyżowania skanalizowane, w formie ronda lub inne podnoszące poziom bezpieczeństwa np. z sygnalizacją świetlną "]
[null,null,null,null,null,"szt.",null,null,null,null,null,null,null,null,null,null,null,null,null,null,null,null,null,null,null,null,{"$f":"LEN(G84)","v":0},"z",400]
["B. ","Drogowe obiekty inżynierskie:"]
[null,"•","remontowane obiekty: most, wiadukt, estakada, kładka dla pieszych"]
[null,null,null,null,null,"szt.",null,null,null,null,null,null,null,null,null,null,null,null,null,null,null,null,null,null,null,null,{"$f":"LEN(G87)","v":0},"z",400]
["C.","Rodzaj robót budowlanych realizowanych w ramach wnioskowanego zadania"]
[null,"•","nastąpi remont chodnika dla pieszych"]
[null,"•","nastąpi remont ścieżki pieszo-rowerowej"]
[null,"•","nastąpi remont oświetlenia ulicznego"]
[null,"Kryterium nr 4",null,null,null,"-","Zwiększenie dostępności transportowej jednostek administracyjnych"]
["A.\n","Odcinek przebiega w całości lub w części na obszarze wiejskim (wykracza poza granice administracyjne miasta)"]
[]
["B.\n\n","Odcinek przebiega w granicach administracyjnych miast ujętych w pakiecie dla średnich miast uznanych za zagrożone utratą funkcji społeczno - gospodarczych (na podstawie Analizy Instytutu Geografii i Przestrzennego Zagospodarowania PAN)"]
["C.\n\n\n","Odcinek stanowi bezpośredni/pośredni dojazd do miejsc publicznych tj. cmentarz, boisko, urząd gminy, szkoła, amfiteatr, remiza OSP, ośrodek zdrowia, ośrodek pomocy społecznej, świetlica wiejska, obiekty zabytkowe i sakralne (dojazd pośredni - położenie powyżej 200 m.b. od drogi, dojazd bezpośredni - położenie do 200 m.b. od drogi)"]
[null,null,null,null,{"$f":"IF(B97=\"TAK\",\"bezpośredni dojazd do:\",\"\")","v":""},null,null,null,null,null,null,null,null,null,null,null,null,null,null,null,null,null,null,null,null,null,{"$f":"LEN(I97)","v":0},"z",250]
[null,null,null,null,{"$f":"IF(B97=\"TAK\",\"pośredni dojazd do:\",\"\")","v":""},null,null,null,null,null,null,null,null,null,null,null,null,null,null,null,null,null,null,null,null,null,{"$f":"LEN(I98)","v":0},"z",250]
["D.\n","Odcinek drogi przyczynia się do poprawy dostępności komunikacyjnej obszarów o niższym poziomie zamożności"]
[null,null,null,null,null,null,null,null,null,null,null,null,null,null,null,null,null,null,null,null,null,null,null,null,null,null,{"$f":"LEN(E100)","v":0},"z",300]
["E.\n\n\n\n","Odcinek drogi stanowi dojazd do nieruchomości, na których zostały zrealizowane lub będą realizowane przez gminę lub związek międzygminny inwestycje mieszkaniowe w ramach programów społeczno - gospodarczych m.in.: mieszkania na wynajem, noclegownie, schroniska dla osób bezdomnych, mieszkania chronione (dojazd pośredni - położenie powyżej 200 m.b. od drogi, dojazd bezpośredni - położenie do 200 m.b. od drogi)"]
[null,null,null,null,{"$f":"IF(B102=\"TAK\",\"bezpośredni dojazd do:\",\"\")","v":""},null,null,null,null,null,null,null,null,null,null,null,null,null,null,null,null,null,null,null,null,null,{"$f":"LEN(I102)","v":0},"z",250]
[null,null,null,null,{"$f":"IF(B102=\"TAK\",\"pośredni dojazd do:\",\"\")","v":""},null,null,null,null,null,null,null,null,null,null,null,null,null,null,null,null,null,null,null,null,null,{"$f":"LEN(I103)","v":0},"z",250]
["F.\n","Odcinek drogi prowadzi do obiektu użyteczności publicznej objętego dofinansowaniem z programu Maluch+, Senior+, Rządowego Funduszu Inwestycji Lokalnych"]
[null,null,null,null,null,null,null,null,null,null,null,null,null,null,null,null,null,null,null,null,null,null,null,null,null,null,{"$f":"LEN(E105)","v":0},"z",250]
["G.\n\n","Bezpośrednio w ciągu drogi objętej zadaniem przebiega linia autobusowa objęta wsparciem z Funduszu Rozwoju Przewozów Autobusowych, lub realizowane są usługi transportu publicznego lub uchwalono planowany przebieg linii użyteczności publicznej"]
[null,null,null,null,null,null,null,null,null,null,null,null,null,null,null,null,null,null,null,null,null,null,null,null,null,null,{"$f":"LEN(E107)","v":0},"z",250]
[null,"Kryterium nr 5",null,null,null,"-","Poprawa dostępności do terenów gospodarczych i inwestycyjnych"]
["A.\n\n","Czy odcinek stanowi bezpośredni/pośredni dojazd do lokalnych ośrodków gospodarczych np. do strefy ekonomicznej, podmiotów gospodarczych, lokalnego targowiska (dojazd pośredni - położenie powyżej 200 m.b. od drogi, dojazd bezpośredni - położenie do 200 m.b. od drogi)"]
[null,null,null,null,{"$f":"IF(B110=\"TAK\",\"bezpośredni dojazd do:\",\"\")","v":""},null,null,null,null,null,null,null,null,null,null,null,null,null,null,null,null,null,null,null,null,null,{"$f":"LEN(I110)","v":0},"z",250]
[null,null,null,null,{"$f":"IF(B110=\"TAK\",\"pośredni dojazd do:\",\"\")","v":""},null,null,null,null,null,null,null,null,null,null,null,null,null,null,null,null,null,null,null,null,null,{"$f":"LEN(I111)","v":0},"z",250]
["B.\n\n\n","Czy odcinek umożliwia bezpośredni/pośredni dojazd do terenów inwestycyjnych, rozumianych jako tereny przeznaczone w studium uwarunkowań przestrzennych, miejscowym planie zagospodarowania lub w decyzji lokalizacyjnej pod działalność gospodarczą (dojazd pośredni - położenie powyżej 200 m.b. od drogi, dojazd bezpośredni - położenie do 200 m.b. od drogi)"]
[null,null,null,null,{"$f":"IF(B113=\"TAK\",\"bezpośredni dojazd do:\",\"\")","v":""},null,null,null,null,null,null,null,null,null,null,null,null,null,null,null,null,null,null,null,null,null,{"$f":"LEN(I113)","v":0},"z",250]
[null,null,null,null,{"$f":"IF(B113=\"TAK\",\"pośredni dojazd do:\",\"\")","v":""},null,null,null,null,null,null,null,null,null,null,null,null,null,null,null,null,null,null,null,null,null,{"$f":"LEN(I114)","v":0},"z",250]
["C.\n\n\n","Czy odcinek stanowi bezpośredni/pośredni dojazd do terenów, na których jest prowadzona produkcja rolna, sadownictwo, ogrodnictwo lub/i zlokalizowane są gospodarstwa agroturystyczne, ważne ze względu na specyfikę obszaru (dojazd pośredni - położenie powyżej 200 m.b. od drogi, dojazd bezpośredni - położenie do 200 m.b. od drogi)"]
[null,null,null,null,{"$f":"IF(B116=\"TAK\",\"bezpośredni dojazd do:\",\"\")","v":""},null,null,null,null,null,null,null,null,null,null,null,null,null,null,null,null,null,null,null,null,null,{"$f":"LEN(I116)","v":0},"z",250]
[null,null,null,null,{"$f":"IF(B116=\"TAK\",\"pośredni dojazd do:\",\"\")","v":""},null,null,null,null,null,null,null,null,null,null,null,null,null,null,null,null,null,null,null,null,null,{"$f":"LEN(I117)","v":0},"z",250]
["12. ","OSOBY UPOWAŻNIONE DO UDZIELANIA WYJAŚNIEŃ KOMISJI"]
["Lp.","imię i nazwisko",null,null,null,null,null,null,null,null,"nr telefonu",null,null,null,null,null,null,"e-mail"]
[1]
[2]
[3]
["13. ","OŚWIADCZENIE WNIOSKODAWCY (ustawowego zarządcy drogi)"]
["Wnioskodawca oświadcza, że: "]
[null,"1)","dane i informacje zawarte we wniosku są prawidłowe i kompletne, "]
[null,"2)","zadanie obejmuje wyłącznie drogi publiczne,  "]
[null,"3)\n","jednostka zobowiązuje się do realizacji przedmiotowego zadania z zachowaniem odpowiedniego oznakowania i zastosowania urządzeń bezpieczeństwa i organizacji ruchu,"]
[null,"4)","zapewnione zostanie zabezpieczenie całości zadeklarowanego we wniosku wkładu własnego,"]
[null,"5)","do wniosku dołączone zostały załączniki:   "]
[null,null,"a)","kopia prawomocnej decyzji o pozwoleniu na budowę (obligatoryjnie)\nlub"]
[null,null,null,"kopia zgłoszenia robót budowlanych z poświadczeniem braku podstaw do wniesienia sprzeciwu na zgłoszenie wykonania robót budowlanych potwierdzone zaświadczeniem organu administracji architektoniczno-budowlanej lub pieczęcią organu administracji architektoniczno-budowlanej (obligatoryjnie),"]
[null,null,"b)","czytelna mapa poglądowa z zaznaczonymi elementami mającymi wpływ na ocenę merytoryczną wniosku - dotyczy kryterium nr 4 i nr 5 (obligatoryjnie),"]
[null,null,"c)","kopia strony projektu stałej organizacji ruchu, z której wynika, że projekt jest zatwierdzony (obligatoryjnie) \n"]
[null,null,null,"lub \npismo organu uprawnionego do zatwierdzenia organizacji ruchu (obligatoryjnie),"]
[null,null,"d)","kopia kosztorysu inwestorskiego (obligatoryjnie),"]
[null,null,"e)","kopia protokołu strat potwierdzonego przez Wojewodę Świętokrzyskiego - dotyczy kryterium nr 2 lit. E  (jeśli dotyczy)"]
[null,null,"f)","informacja dotycząca komplementarności zadania z programami rządowymi z podaniem nazwy programu, numeru i daty umowy z Wojewodą lub umowy/umów wynikających z programów społeczno - gospodarczych - dotyczy kryterium nr 4 lit. F, G  (jeśli dotyczy), "]
[null,null,"g)","oświadczenie o przekazaniu danych o sieci dróg publicznych  do Generalnego Dyrektora Dróg Krajowych i Autostrad (obligatoryjnie)."]
[]
["Ja, niżej podpisany zobowiązuję się do: "]
[null,"•  przeprowadzenia postępowania o zamówienie publiczne zgodnie z obowiązującymi przepisami \n   Prawa zamówień publicznych.     "]
["Podpisy i pieczątki osób upoważnionych z ramienia wnioskodawcy (wraz z podpisem Skarbnika/Głównego Księgowego) - ustawowy zarządca drogi"]

{"sheet":"DANE","index":1,"n_rows":184,"n_cols":15,"rows_kept":184,"cut":false,"hidden":true,"merged":[]}
[null,"DANE DO WNIOSKU - proszę nic nie zmieniać w tym arkuszu"]
[]
[null,"KATEGORIA",null,"jednoroczne","wieloletnie",null,"Dzień","Miesiąc ","Rok","Kolumna1"]
[null,"gminna",null,2023,2024,null,1,"I",2000,2023]
[null,"powiatowa",null,2024,2025,null,2,"II",2001,2022]
[null,null,null,null,2026,null,3,"III",2002,2021]
[null,"TAK","TAK",null,2027,null,4,"IV",2003,2020]
[null,"NIE","NIE",null,2028,null,5,"V",2004,2019]
[null,null,"NIE DOTYCZY",null,2029,null,6,"VI",2005,2018]
[null,null,null,null,2030,null,7,"VII",2006,2017]
[null,null,null,null,null,null,8,"VIII",2007,2016]
[null,"Klasa drogi",null,null,null,null,9,"IX",2008,2015]
[null,"D",null,null,null,null,10,"X",2009,2014]
[null,"L",null,null,null,null,11,"XI",2010,2013]
[null,"Z",null,null,null,null,12,"XII",2011,2012]
[null,"G",null,null,null,null,13,null,2012,2011]
[null,"GP",null,"stycznia","styczeń",null,14,null,2013,2010]
[null,null,null,"lutego","luty",null,15,null,2014,2009]
[null,"Peryferyjność",null,"marca","marzec",null,16,null,2015,2008]
[null,"mniejszy niż 30 minut",null,"kwietnia","kwiecień",null,17,null,2016,2007]
[null,"w przedziale od 30 do 50 minut",null,"maja","maj",null,18,null,2017,2006]
[null,"większy niż 50 minut",null,"czerwca","czerwiec",null,19,null,2018,2005]
[null,null,null,"lipca","lipiec",null,20,null,2019,2004]
[null,null,null,"sierpnia","sierpień",null,21,null,2020,2003]
[null,"w całości",null,"września","wrzesień",null,22,null,2021,2002]
[null,"w części",null,"października","październik",null,23,null,2022,2001]
[null,null,null,"listopada","listopad",null,24,null,2023,2000]
[null,null,null,"grudnia","grudzień",null,25]
[null,null,null,null,null,null,26]
[null,null,null,null,null,null,27]
[null,"bezpośredni dojazd do:",null,null,null,null,28]
[null,"pośredni dojazd do:",null,null,null,null,29]
[null,"bezpośredni i pośredni dojazd do:",null,null,null,null,30]
[null,null,null,null,null,null,31]
[]
[]
[null,"POWIAT","Buski","Jędrzejowski","Kazimierski","Kielecki","Konecki","Opatowski","Ostrowiecki","Pińczowski","Sandomierski","Skarżyski","Starachowicki","Staszowski","Włoszczowski"]
[null,"Buski","Busko-Zdrój","Imielno","Bejsce","Bieliny","Fałków","Baćkowice","Bałtów","Działoszyce","Dwikozy","Bliżyn","Brody","Bogoria","Kluczewsko"]
[null,"Jędrzejowski","Gnojno","Jędrzejów","Czarnocin","Bodzentyn","Gowarczów","Iwaniska","Bodzechów","Kije","Klimontów","Łączna","Mirzec","Łubnice","Krasocin"]
[null,"Kazimierski","Nowy Korczyn","Małogoszcz","Kazimierza Wielka","Chęciny","Końskie","Lipnik","Ćmielów","Michałów","Koprzywnica","Skarżysko-Kamienna","Pawłów","Oleśnica","Moskorzew"]
[null,"Kielecki","Pacanów","Nagłowice","Opatowiec","Chmielnik","Radoszyce","Opatów","Kunów","Pińczów","Łoniów","Skarżysko Kościelne","Starachowice","Osiek","Radków"]
[null,"Konecki","Solec-Zdrój","Oksa","Skalbmierz","Daleszyce","Ruda Maleniecka","Ożarów","Ostrowiec Świętokrzyski","Złota","Obrazów","Suchedniów","Wąchock","Połaniec","Secemin"]
[null,"Opatowski","Stopnica","Sędziszów",null,"Górno","Słupia Konecka","Sadowie","Waśniów",null,"Samborzec",null,null,"Rytwiany","Włoszczowa"]
[null,"Ostrowiecki","Tuczępy","Słupia Jędrzejowska",null,"Kielce","Smyków","Tarłów",null,null,"Sandomierz",null,null,"Staszów"]
[null,"Pińczowski","Wiślica","Sobków",null,"Łagów","Stąporków","Wojciechowice",null,null,"Wilczyce",null,null,"Szydłów"]
[null,"Sandomierski",null,"Wodzisław",null,"Łopuszno",null,null,null,null,"Zawichost"]
[null,"Skarżyski",null,null,null,"Masłów"]
[null,"Starachowicki",null,null,null,"Miedziana Góra"]
[null,"Staszowski",null,null,null,"Mniów"]
[null,"Włoszczowski",null,null,null,"Morawica"]
[null,null,null,null,null,"Nowa Słupia"]
[null,null,null,null,null,"Nowiny"]
[null,null,null,null,null,"Piekoszów"]
[null,null,null,null,null,"Pierzchnica"]
[null,null,null,null,null,"Raków"]
[null,null,null,null,null,"Strawczyn"]
[null,null,null,null,null,"Zagnańsk"]
[]
[]
[]
[]
[]
[]
[]
[]
[]
[]
[null,"POWIAT / GMINA",null,null,null,"TERC / TERYT",null,null,null,"%"]
[null,null,null,"POWIATY","JST","Teryt","Dochód RAZEM","Dochód na mieszkańca","Dochód art. 14 ","%"]
[{"$f":"CONCATENATE(D70&C70)","v":"buski"},"buski26",null,"buski","powiat buski",2601,26527448.859999999,377.48596721404789,1.0140010148759659,0.5]
["jędrzejowski","jędrzejowski26",null,"jędrzejowski","powiat jędrzejowski",2602,30304747.239999998,360.6763376258599,0.9688470675970553,0.6]
["kazimierski","kazimierski26",null,"kazimierski","powiat kazimierski",2603,12632130.98,382.75705178317122,1.0281601772470466,0.5]
["kielecki","kielecki26",null,"kielecki","powiat kielecki",2604,84572327.859999999,401.42170598342523,1.0782970828413008,0.5]
["konecki","konecki26",null,"konecki","powiat konecki",2605,35525321.600000001,455.21939518195796,1.2228081804269806,0.5]
["opatowski","opatowski26",null,"opatowski","powiat opatowski",2606,27570873.530000001,542.31738488168537,1.4567703872898941,0.5]
["ostrowiecki","ostrowiecki26",null,"ostrowiecki","powiat ostrowiecki",2607,41427817.049999997,390.01531759256642,1.047657296441395,0.5]
["pińczowski","pińczowski26",null,"pińczowski","powiat pińczowski",2608,14419486.039999999,379.12094546984275,1.0183928857126798,0.5]
["sandomierski","sandomierski26",null,"sandomierski","powiat sandomierski",2609,24736611.120000001,327.67195358448578,0.88019084771078648,0.7]
["skarżyski","skarżyski26",null,"skarżyski","powiat skarżyski",2610,36163336.399999999,502.5756906998721,1.3500164368565566,0.5]
["starachowicki","starachowicki26",null,"starachowicki","powiat starachowicki",2611,29351667.399999999,335.60488228770049,0.90150024317087563,0.6]
["staszowski","staszowski26",null,"staszowski","powiat staszowski",2612,24700606.039999999,349.47588449185753,0.93876046350745446,0.6]
["włoszczowski","włoszczowski26",null,"włoszczowski","powiat włoszczowski",2613,16639741.800000001,374.64239108409322,1.0063626141615465,0.5]
[{"$f":"CONCATENATE(C83&D83)","v":"buskiBusko-Zdrój"},"Busko-Zdrój26","buski","Busko-Zdrój","gmina Busko-Zdrój",2601013,63580725.509999998,2007.7912498815801,0.87552396592476556,0.7]
["buskiGnojno","Gnojno26","buski","Gnojno","gmina Gnojno",2601022,8897521.2100000009,2074.497833993938,0.90461225539648726,0.6]
["buskiNowy Korczyn","Nowy Korczyn26","buski","Nowy Korczyn","gmina Nowy Korczyn",2601033,12108930,2115.0969432314409,0.92231603467868506,0.6]
["buskiPacanów","Pacanów26","buski","Pacanów","gmina Pacanów",2601043,14638013.49,2049.2809029819405,0.89361607865282555,0.7]
["buskiSolec-Zdrój","Solec-Zdrój26","buski","Solec-Zdrój","gmina Solec-Zdrój",2601052,10418213.92,2094.5343626859672,0.91334944909869387,0.6]
["buskiStopnica","Stopnica26","buski","Stopnica","gmina Stopnica",2601063,15268337.92,2037.9522050186865,0.88867604986739435,0.7]
["buskiTuczępy","Tuczępy26","buski","Tuczępy","gmina Tuczępy",2601072,8615500.5999999996,2363.0007131102575,1.0304177567998485,0.5]
["buskiWiślica","Wiślica26","buski","Wiślica","gmina Wiślica",2601083,11040242.559999999,2068.2357736980139,0.90188160106901638,0.6]
["jędrzejowskiImielno","Imielno26","jędrzejowski","Imielno","gmina Imielno",2602012,8677560.620000001,2045.6295662423388,0.89202386490880647,0.7]
["jędrzejowskiJędrzejów","Jędrzejów26","jędrzejowski","Jędrzejów","gmina Jędrzejów",2602023,53788849,1963.0966788321168,0.85603430627870403,0.7]
["jędrzejowskiMałogoszcz","Małogoszcz26","jędrzejowski","Małogoszcz","gmina Małogoszcz",2602033,25738618.700000003,2255.9925234464022,0.98375541846838399,0.6]
["jędrzejowskiNagłowice","Nagłowice26","jędrzejowski","Nagłowice","gmina Nagłowice",2602042,9964278.4499999993,2056.6106191950462,0.89681229848313904,0.7]
["jędrzejowskiOksa","Oksa26","jędrzejowski","Oksa","gmina Oksa",2602052,9139214,2037.7288740245262,0.88857866342956993,0.7]
["jędrzejowskiSędziszów","Sędziszów26","jędrzejowski","Sędziszów","gmina Sędziszów",2602063,25356628.900000002,2080.8000082061385,0.90736040192842382,0.6]
["jędrzejowskiSłupia Jędrzejowska","Słupia Jędrzejowska26","jędrzejowski","Słupia Jędrzejowska","gmina Słupia Jędrzejowska",2602072,8760890.3200000003,2074.5655505564764,0.90464178410042795,0.6]
["jędrzejowskiSobków","Sobków26","jędrzejowski","Sobków","gmina Sobków",2602082,17782214.119999997,2109.8972615092543,0.92004864459855396,0.6]
["jędrzejowskiWodzisław","Wodzisław26","jędrzejowski","Wodzisław","gmina Wodzisław",2602093,14324445.239999998,2105.2976543209875,0.9180429249663935,0.6]
["kazimierskiBejsce","Bejsce26","kazimierski","Bejsce","gmina Bejsce",2603012,7735098.3599999994,1957.2617307692306,0.85348989989717183,0.7]
["kazimierskiCzarnocin","Czarnocin26","kazimierski","Czarnocin","gmina Czarnocin",2603022,7319231.5,1980.84749661705,0.86377478546765818,0.7]
["kazimierskiKazimierza Wielka","Kazimierza Wielka26","kazimierski","Kazimierza Wielka","gmina Kazimierza Wielka",2603033,30062052.75,1893.6726141732283,0.82576102342404856,0.7]
["kazimierskiOpatowiec","Opatowiec26","kazimierski","Opatowiec","gmina Opatowiec",2603043,6567769.0600000005,2066.6359534298304,0.90118397825287477,0.6]
["kazimierskiSkalbmierz","Skalbmierz26","kazimierski","Skalbmierz","gmina Skalbmierz",2603053,12672744.469999999,2010.5893177851815,0.87674410049205798,0.7]
["kieleckiBieliny","Bieliny26","kielecki","Bieliny","gmina Bieliny",2604012,18608181.219999999,1816.8503436828744,0.79226165493390954,0.8]
["kieleckiBodzentyn","Bodzentyn26","kielecki","Bodzentyn","gmina Bodzentyn",2604023,23777222.059999999,2099.1632435772931,0.9153679339167774,0.6]
["kieleckiChęciny","Chęciny26","kielecki","Chęciny","gmina Chęciny",2604033,29194079.59,1955.0043253197616,0.85250552835359839,0.7]
["kieleckiChmielnik","Chmielnik26","kielecki","Chmielnik","gmina Chmielnik",2604043,22865005.800000001,2064.7467762326169,0.90036017751555375,0.6]
["kieleckiDaleszyce","Daleszyce26","kielecki","Daleszyce","gmina Daleszyce",2604053,37218233.740000002,2356.0317617269102,1.0273788532515613,0.5]
["kieleckiGórno","Górno26","kielecki","Górno","gmina Górno",2604062,27147844.700000003,1844.5335439597773,0.80433328105408175,0.7]
["kieleckiKielce","Kielce26","kielecki","Kielce","gmina Kielce",{"$error":"#N/A"},{"$error":"#N/A"},{"$error":"#N/A"},{"$error":"#N/A"},{"$error":"#N/A"}]
["kieleckiŁagów","Łagów26","kielecki","Łagów","gmina Łagów",2604073,14851261,2206.7252600297179,0.96227177575434208,0.6]
["kieleckiŁopuszno","Łopuszno26","kielecki","Łopuszno","gmina Łopuszno",2604082,18256657.75,2057.0881971830986,0.89702055268992609,0.7]
["kieleckiMasłów","Masłów26","kielecki","Masłów","gmina Masłów",2604092,22549586.280000001,2001.2057401490949,0.87265226718668121,0.7]
[{"$f":"CONCATENATE(C115&D115)","v":"kieleckiMiedziana Góra"},"Miedziana Góra26","kielecki","Miedziana Góra","gmina Miedziana Góra",2604102,22463608.099999998,1905.3102714164545,0.8308357779954032,0.7]
["kieleckiMniów","Mniów26","kielecki","Mniów","gmina Mniów",2604112,17944258.449999999,1936.7791095520777,0.84455818164128538,0.7]
["kieleckiMorawica","Morawica26","kielecki","Morawica","gmina Morawica",2604123,40273851.359999999,2356.2983477650364,1.0274951016241818,0.5]
["kieleckiNowa Słupia","Nowa Słupia26","kielecki","Nowa Słupia","gmina Nowa Słupia",2604133,17293774.66,1874.2575766771431,0.81729483918893286,0.7]
["kieleckiNowiny","Nowiny26","kielecki","Nowiny","gmina Nowiny",2604172,36911130,4604.681886227545,2.007932521416083,0.5]
["kieleckiPiekoszów","Piekoszów26","kielecki","Piekoszów","gmina Piekoszów",2604142,33187491.919999998,2011.8508680892337,0.8772942162102545,0.7]
["kieleckiPierzchnica","Pierzchnica26","kielecki","Pierzchnica","gmina Pierzchnica",2604153,9747609.0099999998,2119.5061991737334,0.92423874912900494,0.6]
["kieleckiRaków","Raków26","kielecki","Raków","gmina Raków",2604162,11649365.459999999,2133.1927229445155,0.93020693908511987,0.6]
["kieleckiStrawczyn","Strawczyn26","kielecki","Strawczyn","gmina Strawczyn",2604182,21410228.039999999,1943.3809603340292,0.84743700611041217,0.7]
["kieleckiZagnańsk","Zagnańsk26","kielecki","Zagnańsk","gmina Zagnańsk",2604192,24278223.649999999,1903.4279615836926,0.83001497186330353,0.7]
["koneckiFałków","Fałków26","konecki","Fałków","gmina Fałków",2605012,9165752.4600000009,2148.0554159831267,0.93668801322779027,0.6]
["koneckiGowarczów","Gowarczów26","konecki","Gowarczów","gmina Gowarczów",2605022,9353469.9499999993,2058.8751815980627,0.89779979091109441,0.7]
["koneckiKońskie","Końskie26","konecki","Końskie","gmina Końskie",2605033,69857581.609999999,2028.3261696814843,0.88447848967030906,0.7]
["koneckiRadoszyce","Radoszyce26","konecki","Radoszyce","gmina Radoszyce",2605043,17893637.120000001,2069.5856025907938,0.9024702118349992,0.6]
["koneckiRuda Maleniecka","Ruda Maleniecka26","konecki","Ruda Maleniecka","gmina Ruda Maleniecka",2605052,8712234.0999999996,2913.7906688963208,1.270597011744695,0.5]
["koneckiSłupia Konecka","Słupia Konecka26","konecki","Słupia Konecka","gmina Słupia Konecka",2605062,6875806.8799999999,2136.6708763206962,0.93172363392985935,0.6]
["koneckiSmyków","Smyków26","konecki","Smyków","gmina Smyków",2605072,7571048.7400000002,2021.102172984517,0.88132837023516886,0.7]
["koneckiStąporków","Stąporków26","konecki","Stąporków","gmina Stąporków",2605083,33691151.649999999,2081.1138211131015,0.90749724420267863,0.6]
["opatowskiBaćkowice","Baćkowice26","opatowski","Baćkowice","gmina Baćkowice",2606012,10887025.92,2267.1857392753018,0.98863636847478931,0.6]
["opatowskiIwaniska","Iwaniska26","opatowski","Iwaniska","gmina Iwaniska",2606022,12870223.870000001,2001.2787855698959,0.87268411960984327,0.7]
["opatowskiLipnik","Lipnik26","opatowski","Lipnik","gmina Lipnik",2606032,10218875.010000002,2020.7385821633384,0.88116982164215607,0.7]
["opatowskiOpatów","Opatów26","opatowski","Opatów","gmina Opatów",2606043,22618442.800000001,1993.3412179430686,0.8692228381201238,0.7]
["opatowskiOżarów","Ożarów26","opatowski","Ożarów","gmina Ożarów",2606053,38264204.350000001,3659.8952032520328,1.5959457754431579,0.5]
["opatowskiSadowie","Sadowie26","opatowski","Sadowie","gmina Sadowie",2606062,8242427.9299999997,2153.7569715181603,0.93917425203088656,0.6]
["opatowskiTarłów","Tarłów26","opatowski","Tarłów","gmina Tarłów",2606072,10455472.68,2104.5637439613524,0.9177228936340831,0.6]
["opatowskiWojciechowice","Wojciechowice26","opatowski","Wojciechowice","gmina Wojciechowice",2606082,8461568.2800000012,2141.0850910931176,0.93364851074373234,0.6]
["ostrowieckiBałtów","Bałtów26","ostrowiecki","Bałtów","gmina Bałtów",2607022,6902396.0599999996,2078.4089310448658,0.90631774106455509,0.6]
["ostrowieckiBodzechów","Bodzechów26","ostrowiecki","Bodzechów","gmina Bodzechów",2607032,24502147.420000002,1867.9688511092477,0.81455255711646091,0.7]
["ostrowieckiĆmielów","Ćmielów26","ostrowiecki","Ćmielów","gmina Ćmielów",2607043,15572461.17,2163.1422655924434,0.9432668338118716,0.6]
["ostrowieckiKunów","Kunów26","ostrowiecki","Kunów","gmina Kunów",2607053,15192831.32,1573.4083802816901,0.68610556261998623,0.8]
["ostrowieckiOstrowiec Świętokrzyski","Ostrowiec Świętokrzyski26","ostrowiecki","Ostrowiec Świętokrzyski","gmina Ostrowiec Świętokrzyski",2607011,132384003,1998.0078330163906,0.87125777742802257,0.7]
["ostrowieckiWaśniów","Waśniów26","ostrowiecki","Waśniów","gmina Waśniów",2607062,13178873.6,1975.8431184407796,0.86159256008534613,0.7]
[{"$f":"CONCATENATE(C147&D147)","v":"pińczowskiDziałoszyce"},"Działoszyce26","pińczowski","Działoszyce","gmina Działoszyce",2608013,9997554.8999999985,2106.9662592202317,0.91877054223190058,0.6]
["pińczowskiKije","Kije26","pińczowski","Kije","gmina Kije",2608022,12908967.84,3014.7052405418031,1.3146021472346832,0.5]
["pińczowskiMichałów","Michałów26","pińczowski","Michałów","gmina Michałów",2608032,9359123.8000000007,2098.4582511210765,0.91506051261924448,0.6]
["pińczowskiPińczów","Pińczów26","pińczowski","Pińczów","gmina Pińczów",2608043,43987158,2180.2804460966545,0.95074016440072961,0.6]
["pińczowskiZłota","Złota26","pińczowski","Złota","gmina Złota",2608052,8755118.8000000007,2002.5431838975298,0.87323547724644224,0.7]
["sandomierskiDwikozy","Dwikozy26","sandomierski","Dwikozy","gmina Dwikozy",2609022,15871374.800000001,1850.4575958960011,0.80691654235968446,0.7]
["sandomierskiKlimontów","Klimontów26","sandomierski","Klimontów","gmina Klimontów",2609033,15423593.140000001,1960.0448773668827,0.8547035278313857,0.7]
["sandomierskiKoprzywnica","Koprzywnica26","sandomierski","Koprzywnica","gmina Koprzywnica",2609043,12119962.84,1869.2108019740901,0.81509412623961297,0.7]
["sandomierskiŁoniów","Łoniów26","sandomierski","Łoniów","gmina Łoniów",2609052,14494426.640000001,1963.4823408290438,0.85620247930021509,0.7]
["sandomierskiObrazów","Obrazów26","sandomierski","Obrazów","gmina Obrazów",2609062,12373955.24,1956.6659139784947,0.85323008609450668,0.7]
["sandomierskiSamborzec","Samborzec26","sandomierski","Samborzec","gmina Samborzec",2609072,15517280.959999999,1863.2662055715657,0.8125019062473865,0.7]
["sandomierskiSandomierz","Sandomierz26","sandomierski","Sandomierz","gmina Sandomierz",2609011,50401168.159999996,2224.8242323651452,0.9701640723460373,0.6]
["sandomierskiWilczyce","Wilczyce26","sandomierski","Wilczyce","gmina Wilczyce",2609082,7340948.8799999999,2046.5427599665459,0.8924220751266877,0.7]
["sandomierskiZawichost","Zawichost26","sandomierski","Zawichost","gmina Zawichost",2609093,8720961.9699999988,2034.2808420807089,0.88707510343434415,0.7]
["skarżyskiBliżyn","Bliżyn26","skarżyski","Bliżyn","gmina Bliżyn",2610022,15825855.32,1992.6788365650971,0.86893399794760562,0.7]
["skarżyskiŁączna","Łączna26","skarżyski","Łączna","gmina Łączna",2610032,10478000.34,2159.9670871985159,0.94188225522077851,0.6]
["skarżyskiSkarżysko-Kamienna","Skarżysko-Kamienna26","skarżyski","Skarżysko-Kamienna","gmina Skarżysko-Kamienna",2610011,87323051.5,2011.032460503892,0.87693733874358393,0.7]
["skarżyskiSkarżysko-Kościelne","Skarżysko-Kościelne26","skarżyski","Skarżysko-Kościelne","gmina Skarżysko-Kościelne",2610042,11085725.359999999,1893.0541939890709,0.82549135311232003,0.7]
["skarżyskiSuchedniów","Suchedniów26","skarżyski","Suchedniów","gmina Suchedniów",2610053,18581496.649999999,1879.76698533131,0.81969728979981238,0.7]
["starachowickiBrody","Brody26","starachowicki","Brody","gmina Brody",2611022,21502670,2023.780705882353,0.88249637998006225,0.7]
["starachowickiMirzec","Mirzec26","starachowicki","Mirzec","gmina Mirzec",2611032,16004737.620000001,1961.6052972177965,0.85538396957375329,0.7]
["starachowickiPawłów","Pawłów26","starachowicki","Pawłów","gmina Pawłów",2611042,28155229.280000001,1861.0105942230155,0.81151831704527988,0.7]
["starachowickiStarachowice","Starachowice26","starachowicki","Starachowice","gmina Starachowice",2611011,95266694.629999995,2032.1827391795898,0.88616019787679956,0.7]
["starachowickiWąchock","Wąchock26","starachowicki","Wąchock","gmina Wąchock",2611053,13296961.83,1994.4445522723863,0.86970396166710717,0.7]
["staszowskiBogoria","Bogoria26","staszowski","Bogoria","gmina Bogoria",2612012,16746370.92,2196.5334365162644,0.9578274961296398,0.6]
["staszowskiŁubnice","Łubnice26","staszowski","Łubnice","gmina Łubnice",2612022,8231249.5899999999,2027.900859817689,0.88429302767134921,0.7]
["staszowskiOleśnica","Oleśnica26","staszowski","Oleśnica","gmina Oleśnica",2612033,7437441.5499999998,1942.3978976234002,0.8470083285956489,0.7]
["staszowskiOsiek","Osiek26","staszowski","Osiek","gmina Osiek",2612043,16400607.84,2156.8395370857443,0.94051844557247788,0.6]
["staszowskiPołaniec","Połaniec26","staszowski","Połaniec","gmina Połaniec",2612053,37518216.899999999,3256.5069785608885,1.4200429975474123,0.5]
["staszowskiRytwiany","Rytwiany26","staszowski","Rytwiany","gmina Rytwiany",2612062,13619897.310000001,2152.6627643432907,0.93869710850048138,0.6]
["staszowskiStaszów","Staszów26","staszowski","Staszów","gmina Staszów",2612073,48571952,1927.4584126984128,0.84049376833388378,0.7]
["staszowskiSzydłów","Szydłów26","staszowski","Szydłów","gmina Szydłów",2612083,9659978.6999999993,2139.5301661129565,0.93297046511253112,0.6]
[{"$f":"CONCATENATE(C179&D179)","v":"włoszczowskiKluczewsko"},"Kluczewsko26","włoszczowski","Kluczewsko","gmina Kluczewsko",2613012,10772689.649999999,2106.9215040093877,0.91875102612946902,0.6]
["włoszczowskiKrasocin","Krasocin26","włoszczowski","Krasocin","gmina Krasocin",2613022,23663009.540000003,2235.3116890232386,0.97473726671885852,0.6]
["włoszczowskiMoskorzew","Moskorzew26","włoszczowski","Moskorzew","gmina Moskorzew",2613032,5570298.2300000004,2141.5987043444829,0.93387247860434197,0.6]
["włoszczowskiRadków","Radków26","włoszczowski","Radków","gmina Radków",2613042,5298057,2154.5575437169582,0.93952335214104099,0.6]
["włoszczowskiSecemin","Secemin26","włoszczowski","Secemin","gmina Secemin",2613052,10046615.48,2148.5490761334477,0.93690328027442848,0.6]
["włoszczowskiWłoszczowa","Włoszczowa26","włoszczowski","Włoszczowa","gmina Włoszczowa",2613063,40761971,2147.6275553213909,0.93650143891960547,0.6]

{"sheet":"Remont - przykładowy","index":2,"n_rows":142,"n_cols":37,"rows_kept":142,"cut":false,"hidden":false,"merged":[[139,0,139,25],[140,1,140,25],[141,0,141,25],[142,0,142,25],[135,3,135,22],[135,23,135,25],[136,3,136,22],[136,23,136,25],[137,3,137,22],[137,23,137,25],[132,3,132,22],[132,23,132,25],[133,3,133,22],[133,23,133,25],[134,3,134,22],[134,23,134,25],[128,2,128,25],[129,3,129,22],[129,23,129,25],[130,3,130,22],[130,23,130,25],[131,3,131,22],[131,23,131,25],[122,1,122,25],[123,0,123,25],[124,2,124,25],[125,2,125,25],[126,2,126,25],[127,2,127,25],[120,1,120,9],[120,10,120,16],[120,17,120,25],[121,1,121,9],[121,10,121,16],[121,17,121,25],[117,1,117,25],[118,1,118,9],[118,10,118,16],[118,17,118,25],[119,1,119,9],[119,10,119,16],[119,17,119,25],[114,1,114,25],[115,1,116,3],[115,4,115,7],[115,8,115,25],[116,4,116,7],[116,8,116,25],[111,1,111,25],[112,1,113,3],[112,4,112,7],[112,8,112,25],[113,4,113,7],[113,8,113,25],[107,1,107,4],[107,6,107,25],[108,1,108,25],[109,1,110,3],[109,4,109,7],[109,8,109,25],[110,4,110,7],[110,8,110,25],[103,1,103,25],[104,1,104,3],[104,4,104,25],[105,1,105,25],[106,1,106,3],[106,4,106,25],[98,1,98,25],[99,1,99,3],[99,4,99,25],[100,1,100,25],[101,1,102,3],[101,4,101,7],[101,8,101,25],[102,4,102,7],[102,8,102,25],[95,1,95,25],[96,1,97,3],[96,4,96,7],[96,8,96,25],[97,4,97,7],[97,8,97,25],[92,0,93,0],[92,1,93,21],[92,22,92,25],[93,22,93,25],[94,1,94,21],[94,22,94,25],[89,2,89,21],[89,22,89,25],[90,2,90,21],[90,22,90,25],[91,1,91,4],[91,6,91,25],[84,1,84,25],[85,2,85,25],[86,1,86,3],[86,6,86,25],[87,1,87,25],[88,2,88,21],[88,22,88,25],[80,2,80,25],[81,1,81,3],[81,6,81,25],[82,2,82,25],[83,1,83,3],[83,6,83,25],[77,1,77,11],[77,12,77,14],[77,15,77,25],[78,1,78,4],[78,6,78,25],[79,1,79,25],[74,1,74,3],[74,4,74,25],[75,1,75,25],[76,1,76,11],[76,12,76,14],[76,15,76,25],[69,1,69,25],[70,1,70,12],[70,13,70,25],[71,1,71,25],[72,0,72,25],[73,1,73,25],[66,1,66,25],[67,1,67,9],[67,10,67,12],[67,13,67,25],[68,1,68,9],[68,10,68,12],[68,13,68,25],[62,2,62,22],[62,23,62,25],[63,1,63,25],[64,2,64,22],[64,23,64,25],[65,1,65,4],[65,6,65,25],[59,2,59,22],[59,23,59,25],[60,2,60,22],[60,23,60,25],[61,1,61,22],[61,23,61,25],[55,1,55,25],[56,1,56,4],[56,6,56,25],[57,1,57,25],[58,2,58,22],[58,23,58,25],[53,1,53,25],[54,1,54,25],[52,1,52,25],[50,1,50,11],[50,12,50,19],[50,20,50,21],[50,22,50,23],[50,24,50,25],[51,1,51,22],[51,23,51,25],[48,1,48,11],[48,12,48,19],[48,20,48,21],[48,22,48,23],[48,24,48,25],[49,1,49,11],[49,12,49,19],[49,20,49,21],[49,22,49,23],[49,24,49,25],[45,1,45,25],[46,0,47,0],[46,1,47,11],[46,12,47,19],[46,20,46,25],[47,20,47,21],[47,22,47,23],[47,24,47,25],[43,0,43,2],[43,3,43,7],[43,8,43,12],[43,13,43,19],[43,20,43,25],[44,0,44,2],[44,3,44,12],[44,13,44,19],[44,20,44,25],[41,0,41,2],[41,3,41,7],[41,8,41,12],[41,13,41,19],[41,20,41,25],[42,0,42,2],[42,3,42,7],[42,8,42,12],[42,13,42,19],[42,20,42,25],[39,0,40,2],[39,3,39,12],[39,13,40,19],[39,20,40,25],[40,3,40,7],[40,8,40,12],[35,1,35,3],[35,4,35,25],[36,1,36,19],[36,20,36,25],[37,1,37,25],[38,0,38,25],[32,1,32,19],[32,20,32,25],[33,1,33,3],[33,4,33,25],[34,1,34,19],[34,20,34,25],[28,10,28,20],[29,1,29,25],[30,1,30,19],[30,20,30,25],[31,1,31,3],[31,4,31,25],[26,1,26,9],[26,10,26,14],[26,15,26,20],[26,21,26,23],[26,24,26,25],[27,0,27,9],[27,10,27,14],[27,15,27,20],[27,21,28,25],[28,0,28,9],[24,1,24,9],[24,10,24,14],[24,15,24,20],[24,21,24,23],[24,24,24,25],[25,1,25,9],[25,10,25,14],[25,15,25,20],[25,21,25,23],[25,24,25,25],[21,1,21,25],[22,0,23,0],[22,1,23,9],[22,10,23,14],[22,15,23,20],[22,21,22,25],[23,21,23,23],[23,24,23,25],[18,1,18,25],[19,0,19,15],[19,16,19,25],[20,1,20,7],[20,9,20,15],[20,16,20,24],[13,1,13,25],[14,0,14,25],[15,1,15,25],[16,0,17,5],[16,6,17,14],[16,15,17,15],[16,17,16,21],[16,22,16,25],[17,17,17,21],[17,22,17,25],[11,0,11,3],[11,4,11,6],[11,7,11,10],[11,11,11,16],[11,17,11,25],[12,0,12,3],[12,4,12,6],[12,7,12,10],[12,11,12,16],[12,17,12,25],[9,0,9,2],[9,3,9,25],[10,1,10,25],[4,0,5,2],[4,3,5,14],[4,15,5,16],[4,17,5,25],[6,1,6,25],[7,0,7,2],[7,3,7,6],[7,7,7,9],[7,10,7,17],[7,18,7,20],[0,1,0,3],[0,4,0,25],[1,0,1,3],[1,4,1,25],[2,0,2,25],[3,0,3,25],[7,21,7,25],[8,0,8,2],[8,3,8,25]]}
["!"," UWAGA: ",null,null,"PRZED WYPEŁNIENIEM WNIOSKU NALEŻY ZAPOZNAĆ SIĘ Z INSTRUKCJĄ ."]
[null,null,null,null,"PLIK ZOSTAŁ ZABEZPIECZONY PRZED EDYTOWANIEM. \nPROSZĘ NIE USUWAĆ ZABEZPIECZEŃ I SAMODZIELNIE NIE EDYTOWAĆ PLIKU."]
["WNIOSEK O DOFINANSOWANIE W RAMACH RZĄDOWEGO FUNDUSZU ROZWOJU DRÓG"]
["REMONT"]
["PIECZĘĆ WPŁYWU \nDO URZĘDU \nWOJEWÓDZKIEGO",null,null,null,null,null,null,null,null,null,null,null,null,null,null,"NR EWIDENCYJNY \nWNIOSKU"]
[]
["1. ","NAZWA I ADRES JEDNOSTKI SAMORZĄDU TERYTORIALNEGO"]
["POWIAT ",null,null,"Buski",null,null,null,"GMINA ",null,null,"Busko-Zdrój",null,null,null,null,null,null,null,"NR TERC ",null,null,{"$f":"IFERROR(VLOOKUP(CONCATENATE(D8&K8),DANE!$A$70:$J$184,6,FALSE),\"\")","v":2601013}]
["NAZWA ",null,null,"Nazwa jednostki samorządu teryrorialnego ubiegająca się o dofinansowanie (90 znaków) ",null,null,null,null,null,null,null,null,null,null,null,null,null,null,null,null,null,null,null,null,null,null,{"$f":"LEN(D9)","v":85},"z",90]
["ADRES ",null,null,"Adres jednostki samorządu teryrorialnego ubiegająca się o dofinansowanie (90 znaków)",null,null,null,null,null,null,null,null,null,null,null,null,null,null,null,null,null,null,null,null,null,null,{"$f":"LEN(D10)","v":84},"z",90]
["2. ","KATEGORIA, NUMER ORAZ LOKALIZACJA DROGI"]
["KATEGORIA",null,null,null,"NR DROGI",null,null,"POWIAT ",null,null,null,"GMINA",null,null,null,null,null,"MIEJSCOWOŚĆ"]
["gminna",null,null,null,"123456T",null,null,"Buski",null,null,null,"Busko-Zdrój",null,null,null,null,null,"Busko-Zdrój"]
["3. ","TYTUŁ ZADANIA "]
["Remont drogi gminnej … (300 znaków) ",null,null,null,null,null,null,null,null,null,null,null,null,null,null,null,null,null,null,null,null,null,null,null,null,null,{"$f":"LEN(A15)","v":36},"z",300]
["4. ","PRZEWIDYWANY OKRES REALIZACJI ZADANIA (rozpoczęcie i zakończenie realizacji zadania)"]
[null,null,null,null,null,null,"zadanie jednoroczne realizowane    ",null,null,null,null,null,null,null,null,null,"od","kwietnia",null,null,null,null,2023,null,null,null,null,null,null,null,null,null,null,null,{"$f":"IF(R17=\"stycznia\",1,IF(R17=\"lutego\",2,IF(R17=\"marca\",3,IF(R17=\"kwietnia\",4,IF(R17=\"maja\",5,IF(R17=\"czerwca\",6,IF(R17=\"lipca\",7,IF(R17=\"sierpnia\",8,IF(R17=\"września\",9,IF(R17=\"października\",10,IF(R17=\"listopada\",11,IF(R17=\"grudnia\",12,\"\"))))))))))))","v":4},{"$f":"DATE(W17,AI17,1)","v":"2023-04-01"},{"$f":"DATEDIF(AJ17,AJ18,\"m\")","v":10}]
[null,null,null,null,null,null,null,null,null,null,null,null,null,null,null,null,"do","lutego",null,null,null,null,2024,null,null,null,null,null,null,null,null,null,null,null,{"$f":"IF(R18=\"stycznia\",1,IF(R18=\"lutego\",2,IF(R18=\"marca\",3,IF(R18=\"kwietnia\",4,IF(R18=\"maja\",5,IF(R18=\"czerwca\",6,IF(R18=\"lipca\",7,IF(R18=\"sierpnia\",8,IF(R18=\"września\",9,IF(R18=\"października\",10,IF(R18=\"listopada\",11,IF(R18=\"grudnia\",12,\"\"))))))))))))","v":2},{"$f":"DATE(W18,AI18,1)","v":"2024-02-01"},{"$f":"IFERROR(IF(AK17<12,\"OK\",\"BŁĄD\"),\"liczba\")","v":"OK"}]
["5. ","DŁUGOŚĆ ODCINKA DROGI OBJĘTEGO ZADANIEM, WG RODZAJU ROBÓT BUDOWLANYCH [km]"]
["RZECZYWISTY KILOMETRAŻ W KTÓRYM ZNAJDUJE SIĘ REMONTOWANY ODCINEK DROGI",null,null,null,null,null,null,null,null,null,null,null,null,null,null,null,"DŁUGOŚĆ ODCINKA DROGI OBJĘTEGO ZADANIEM - REMONT"]
["od","0+010",null,null,null,null,null,null,"do","0+850",null,null,null,null,null,null,0.86,null,null,null,null,null,null,null,null,"km"]
["6. ","PRZEWIDYWANY HARMONOGRAM RZECZOWO-FINANSOWY REALIZACJI ZADANIA"]
["Lp.","ELEMENTY I RODZAJE ROBÓT",null,null,null,null,null,null,null,null,"KOSZT KWALIFIKOWALNY\n [zł]",null,null,null,null,"KOSZT NIEKWALIFIKOWALNY\n [zł]",null,null,null,null,null,"ZAKOŃCZENIE REALIZACJI "]
[null,null,null,null,null,null,null,null,null,null,null,null,null,null,null,null,null,null,null,null,null,"miesiąc",null,null,"rok"]
["1.","Roboty budowlane",null,null,null,null,null,null,null,null,896354.23,null,null,null,null,79351.460000000006,null,null,null,null,null,"luty",null,null,2024]
["2.","Nadzór inwestorski (wszystkie branże)",null,null,null,null,null,null,null,null,5500,null,null,null,null,0,null,null,null,null,null,"luty",null,null,2024]
["3.","Tablice informacyjne",null,null,null,null,null,null,null,null,1500,null,null,null,null,0,null,null,null,null,null,"luty",null,null,2024]
["SUMA ",null,null,null,null,null,null,null,null,null,{"$f":"SUM(K25:O27)","v":903354.23},null,null,null,null,{"$f":"SUM(P25:U27)","v":79351.460000000006}]
["OGÓŁEM ",null,null,null,null,null,null,null,null,null,{"$f":"SUM(K28:U28)","v":982705.69}]
["7. ","PRZEWIDYWANE KOSZTY REALIZACJI ZADANIA BRUTTO - WYDATKI KWALIFIKOWALNE [zł]"]
["A.","ŁĄCZNY KOSZT REALIZACJI ZADANIA [zł]",null,null,null,null,null,null,null,null,null,null,null,null,null,null,null,null,null,null,{"$f":"IF(K28=0,\"\",K28)","v":903354.23}]
[null,"SŁOWNIE :",null,null,{"$f":"IF(OR(U31=0,U31=\"\"),\"\",Slownie(U31))","v":"dziewięćset trzy tysiące trzysta pięćdziesiąt cztery złote dwadzieścia trzy grosze"}]
["B.","KWOTA WNIOSKOWANEGO DOFINANSOWANIA [zł]",null,null,null,null,null,null,null,null,null,null,null,null,null,null,null,null,null,null,{"$f":"IF(OR(U31=\"\",U37=\"\"),\"\",FLOOR((U31*U37),1))","v":632347}]
[null,"SŁOWNIE :",null,null,{"$f":"IF(OR(U33=0,U33=\"\"),\" \",Slownie(U33))","v":"sześćset trzydzieści dwa tysiące trzysta czterdzieści siedem złotych zero groszy"}]
["C.","KWOTA WKŁADU WŁASNEGO [zł]",null,null,null,null,null,null,null,null,null,null,null,null,null,null,null,null,null,null,{"$f":"IF(OR(U31=\"\",U37=\"\"),\"\",U31-U33)","v":271007.23}]
[null,"SŁOWNIE :",null,null,{"$f":"IF(OR(U35=0,U35=\"\"),\" \",Slownie(U35))","v":"dwieście siedemdziesiąt jeden tysięcy siedem złotych dwadzieścia trzy grosze"}]
["D.","UDZIAŁ DOFINANSOWANIA W KOSZTACH KWALIFIKOWALNYCH ZADANIA [%]",null,null,null,null,null,null,null,null,null,null,null,null,null,null,null,null,null,null,{"$f":"IFERROR(VLOOKUP(CONCATENATE(D8&K8),DANE!$A$70:$J$184,10,FALSE),\"\")","v":0.7}]
["8. ","PRZEWIDYWANY TERMIN DOKONYWANIA WYPŁAT NA RZECZ WYKONAWCY ZADANIA"]
["KWOTA DO WYPŁATY W DANYM ROKU NA RZECZ WYKONAWCY ZADANIA "]
["ROK",null,null,"KWALIFIKOWALNE",null,null,null,null,null,null,null,null,null,"NIEKWALIFIKOWALNE",null,null,null,null,null,null,"OGÓŁEM"]
[null,null,null,"DOFINANSOWANIE",null,null,null,null,"ŚRODKI WŁASNE"]
[2023,null,null,632347,null,null,null,null,0,null,null,null,null,0,null,null,null,null,null,null,{"$f":"IF(AND(D42=\"\",I42=\"\",N42=\"\"),\"\",SUM(D42:T42))","v":632347}]
[2024,null,null,0,null,null,null,null,271007.23,null,null,null,null,79351.460000000006,null,null,null,null,null,null,{"$f":"IF(AND(D43=\"\",I43=\"\",N43=\"\"),\"\",SUM(D43:T43))","v":350358.69}]
["SUMA",null,null,{"$f":"SUM(D42:H43)","v":632347},null,null,null,null,{"$f":"SUM(I42:M43)","v":271007.23},null,null,null,null,null,null,null,null,null,null,null,null,null,null,null,null,null,null,null,null,null,null,null,null,null,{"$f":"IF(U33=\"\",\"ok\",IF(D44<>U33,\"błąd\",\"ok\"))","v":"ok"},{"$f":"IF(U35=\"\",\"ok\",IF(I44<>U35,\"błąd\",\"ok\"))","v":"ok"}]
["ŁĄCZNIE",null,null,{"$f":"D44+I44","v":903354.23},null,null,null,null,null,null,null,null,null,{"$f":"SUM(N42:T43)","v":79351.460000000006},null,null,null,null,null,null,{"$f":"SUM(U42:Z43)","v":982705.69},null,null,null,null,null,null,null,null,null,null,null,null,null,{"$f":"IF(D45<>K28,\"błąd\",\"ok\")","v":"ok"},{"$f":"IF(N45<>P28,\"błąd\",\"ok\")","v":"ok"},{"$f":"IF(U45<>K29,\"błąd\",\"ok\")","v":"ok"}]
["9.\n","INFORMACJA O DOPEŁNIENIU WYMOGÓW, JAKIE W ZWIĄZKU Z PLANOWANĄ REALIZACJĄ ZADANIA WYNIKAJĄ Z OBOWIĄZUJĄCYCH PRZEPISÓW PRAWA"]
[null,"Rodzaj dokumentu",null,null,null,null,null,null,null,null,null,null,"nr dokumentu / \nznak dokumentu \n(jeśli dotyczy)",null,null,null,null,null,null,null,"data dokumentu (wydania, zatwierdzenia lub opracowania)"]
[null,null,null,null,null,null,null,null,null,null,null,null,null,null,null,null,null,null,null,null,"dzień",null,"miesiąc",null,"rok"]
["1.","Prawomocna decyzja o pozoleniu na budowę lub zgłoszenie robót budowlanych z potwierdzeniem/poświadczeniem o braku sprzeciwu",null,null,null,null,null,null,null,null,null,null,"ABC.123.45.6.2022",null,null,null,null,null,null,null,29,null,"XII",null,2022]
["2.","Kosztorys inwestorski",null,null,null,null,null,null,null,null,null,null,"brak nr/znaku",null,null,null,null,null,null,null,5,null,"I",null,2023]
["3.","Projekt stałej organizacji ruchu lub pismo organu uprawnionego do zatwierdzenia organizacji ruchu",null,null,null,null,null,null,null,null,null,null,"15/2021",null,null,null,null,null,null,null,null,null,"III",null,2021]
["4.","Czy wnioskodawca posiada tytuł prawny do nieruchomości wskazanych w oświadczeniu o dysponowaniu nieruchomością na cele budowlane zgodnie z art. 3 Prawa budowlanego, tj. tytuł prawny wynikający z prawa własności, użytkowania wieczystego, zarządu, ograniczonego prawa rzeczowego albo stosunku zobowiązaniowego, przewidującego uprawnienia do wykonywania robót budowlanych, ponadto tytuł ten nie wynika z posiadania samoistnego/władania lub z mocy prawa na podst. art. 73 ustawy z dnia 13 października 1998 r. Przepisy wprowadzające ustawy reformujące administrację publiczną (dotyczy sytuacji gdy jst nie posiada decyzji potwierdzającej ten fakt)",null,null,null,null,null,null,null,null,null,null,null,null,null,null,null,null,null,null,null,null,null,"TAK"]
["10.\n ","OPIS ZADANIA OBEJMUJĄCY STAN ISTNIEJĄCY ORAZ PROJEKTOWANY WRAZ Z UZASADNIENIEM REALIZACJI ZADANIA"]
["Opis","Opis stanu istniejącego i stanu projektowanego … (700 znaków)",null,null,null,null,null,null,null,null,null,null,null,null,null,null,null,null,null,null,null,null,null,null,null,null,{"$f":"LEN(B54)","v":61},"z",700]
["Uzasadnienie ","Uzasadnienie realizacji zadania … (700 znaków)",null,null,null,null,null,null,null,null,null,null,null,null,null,null,null,null,null,null,null,null,null,null,null,null,{"$f":"LEN(B55)","v":46},"z",700]
["11. ","CHARAKTERYSTYKA ZADANIA WEDŁUG KRYTERIÓW OCENY MERYTORYCZNEJ"]
[null,"Kryterium nr 1",null,null,null,"-","Wpływ zadania na poprawę bezpieczeństwa ruchu drogowego"]
["A. ","Ryzyko społeczne wypadków [TAK/NIE]"]
[null,"•","Odcinek przebiega przez powiat o bardzo dużym lub dużym poziomie ryzyka społecznego - wypadki ogółem, ofiary śmiertelne i ciężko ranne: klasa ryzyka D i E",null,null,null,null,null,null,null,null,null,null,null,null,null,null,null,null,null,null,null,null,"TAK"]
[null,"•","Odcinek przebiega przez powiat o bardzo dużym lub dużym poziomie ryzyka społecznego - wypadki z udziałem pieszych: klasa ryzyka D i E",null,null,null,null,null,null,null,null,null,null,null,null,null,null,null,null,null,null,null,null,"TAK"]
[null,"•","Odcinek przebiega przez powiat o bardzo dużym lub dużym poziomie ryzyka społecznego - wypadki spowodowane zbyt dużą prędkością: klasa ryzyka D i E ",null,null,null,null,null,null,null,null,null,null,null,null,null,null,null,null,null,null,null,null,"NIE"]
["B.\n\n","Realizacja projektu obejmuje, zgłoszenie określone w Programie Likwidacji Miejsc Niebezpiecznych na Drogach Lokalnych w województwie świętokrzyskim 2019 - 2023 Bezpieczni na 5+ [TAK/NIE]",null,null,null,null,null,null,null,null,null,null,null,null,null,null,null,null,null,null,null,null,null,"TAK"]
[null,"•","Pozycja, pod którą zgłoszenie znajduje się w Programie Bezpieczni na 5+",null,null,null,null,null,null,null,null,null,null,null,null,null,null,null,null,null,null,null,null,56]
["C. ","Zwiększenie bezpieczeństwa uczestników ruchu drogowego [TAK/NIE]"]
[null,"•","W ramach zadania nastąpi remont przejścia dla pieszych lub/i przejazdu dla rowerzystów",null,null,null,null,null,null,null,null,null,null,null,null,null,null,null,null,null,null,null,null,"TAK"]
[null,"Kryterium nr 2",null,null,null,"-","Znaczenie zadania dla rozwoju spójnej sieci dróg publicznych "]
["A.\n ","Odcinek ma bezpośrednie połączenie z drogą wyższego rzędu lub stanowi kontynuację remontu drogi \nw ramach wcześniej złożonych wniosków o dofinansowanie w ramach RFRD"]
[null,"bezpośrednie połączenie z drogą wyższego rzędu",null,null,null,null,null,null,null,null,"TAK",null,null,"DP-123 … (60 znaków)",null,null,null,null,null,null,null,null,null,null,null,null,{"$f":"LEN(N68)","v":20},"z",60]
[null,"kontynuacja drogi w ramach wcześniejszych umów dofinansowania z RFRD",null,null,null,null,null,null,null,null,"TAK",null,null,"umowa nr 123/A/RFRD/2020 z dnia 26.07.2020 … (90 znaków)",null,null,null,null,null,null,null,null,null,null,null,null,{"$f":"LEN(N69)","v":56},"z",90]
["B. \n","Odcinek biegnie przez gminę, dla której wskaźnik peryferyjności czasowej jest mniejszy niż 30 min., mieści się w przedziale 30 do 50 minut, jest większy niż 50 min."]
[null,"wskaźnik peryferyjności czasowej:",null,null,null,null,null,null,null,null,null,null,null,"w przedziale od 30 do 50 minut"]
["C. \n","Przewidywane znaczenie wnioskowanego odcinka drogi dla rozwoju społeczno - gospodarczego województwa"]
["Opis - przewidywane znaczenie wnioskowanego odcinka dla rozwoju społeczno-gospodarczego województwa … (400 znaków)",null,null,null,null,null,null,null,null,null,null,null,null,null,null,null,null,null,null,null,null,null,null,null,null,null,{"$f":"LEN(A73)","v":114},"z",400]
["D. ","Odcinek stanowić będzie zamknięcie spójnego ciągu komunikacyjnego"]
[null,"TAK",null,null,"Wskazanie ciągu komunikacyjnego ulegającego zamknięciu … (250 znaków) ",null,null,null,null,null,null,null,null,null,null,null,null,null,null,null,null,null,null,null,null,null,{"$f":"LEN(E75)","v":70},"z",250]
["E.\n ","Droga została uszkodzona w wyniku działania niekorzystnych zjawisk atmosferycznych i jest ujęta \nw protokole strat potwierdzonym przez Wojewodę Świętokrzyskiego"]
[null,"uszkodzona w wyniku działania niekorzystnych zjawisk atmosferycznych ",null,null,null,null,null,null,null,null,null,null,"TAK",null,null,"deszcz nawalny z dnia 25.06.2020",null,null,null,null,null,null,null,null,null,null,{"$f":"LEN(P77)","v":32},"z",60]
[null,"i ujęta w protokole strat potwierdzonym przez Wojewodę Świętokrzyskiego",null,null,null,null,null,null,null,null,null,null,"TAK",null,null,"protokół nr 3/2022 z dnia 3.08.2022",null,null,null,null,null,null,null,null,null,null,{"$f":"LEN(P78)","v":35},"z",60]
[null,"Kryterium nr 3\n",null,null,null,"-","Podnoszenie standardów technicznych dróg oraz zachowanie ich jednorodności pod względem spełniania tych standardów"]
["A. ","Skrzyżowania:"]
[null,"•","remontowane skrzyżowania zwykłe z drogami publicznymi"]
[null,"TAK",null,null,2,"szt.","Opis remontowanego skrzyżowania i/lub powód remontu … (400 znaków)",null,null,null,null,null,null,null,null,null,null,null,null,null,null,null,null,null,null,null,{"$f":"LEN(G82)","v":66},"z",400]
[null,"•","remontowane skrzyżowania skanalizowane, w formie ronda lub inne podnoszące poziom bezpieczeństwa np. z sygnalizacją świetlną "]
[null,"TAK",null,null,1,"szt.","Opis remontowanego skrzyżowania i/lub powód remontu … (400 znaków)",null,null,null,null,null,null,null,null,null,null,null,null,null,null,null,null,null,null,null,{"$f":"LEN(G84)","v":66},"z",400]
["B. ","Drogowe obiekty inżynierskie:"]
[null,"•","remontowane obiekty: most, wiadukt, estakada, kładka dla pieszych"]
[null,"TAK",null,null,3,"szt.","Opis remontowanego obiektu i/lub powód remontu … (400 znaków)",null,null,null,null,null,null,null,null,null,null,null,null,null,null,null,null,null,null,null,{"$f":"LEN(G87)","v":61},"z",400]
["C.","Rodzaj robót budowlanych realizowanych w ramach wnioskowanego zadania"]
[null,"•","nastąpi remont chodnika dla pieszych",null,null,null,null,null,null,null,null,null,null,null,null,null,null,null,null,null,null,null,"TAK"]
[null,"•","nastąpi remont ścieżki pieszo-rowerowej",null,null,null,null,null,null,null,null,null,null,null,null,null,null,null,null,null,null,null,"NIE"]
[null,"•","nastąpi remont oświetlenia ulicznego",null,null,null,null,null,null,null,null,null,null,null,null,null,null,null,null,null,null,null,"TAK"]
[null,"Kryterium nr 4",null,null,null,"-","Zwiększenie dostępności transportowej jednostek administracyjnych"]
["A.\n","Odcinek przebiega w całości lub w części na obszarze wiejskim (wykracza poza granice administracyjne miasta)",null,null,null,null,null,null,null,null,null,null,null,null,null,null,null,null,null,null,null,null,"TAK"]
[null,null,null,null,null,null,null,null,null,null,null,null,null,null,null,null,null,null,null,null,null,null,"w części"]
["B.\n\n","Odcinek przebiega w granicach administracyjnych miast ujętych w pakiecie dla średnich miast uznanych za zagrożone utratą funkcji społeczno - gospodarczych (na podstawie Analizy Instytutu Geografii i Przestrzennego Zagospodarowania PAN)",null,null,null,null,null,null,null,null,null,null,null,null,null,null,null,null,null,null,null,null,"NIE"]
["C.\n\n\n","Odcinek stanowi bezpośredni/pośredni dojazd do miejsc publicznych tj. cmentarz, boisko, urząd gminy, szkoła, amfiteatr, remiza OSP, ośrodek zdrowia, ośrodek pomocy społecznej, świetlica wiejska, obiekty zabytkowe i sakralne (dojazd pośredni - położenie powyżej 200 m.b. od drogi, dojazd bezpośredni - położenie do 200 m.b. od drogi)"]
[null,"TAK",null,null,{"$f":"IF(B97=\"TAK\",\"bezpośredni dojazd do:\",\"\")","v":"bezpośredni dojazd do:"},null,null,null,"wymienić do jakich miejsc publicznych odcinek stanowi bezpośredni dojazd … (250 znaków)",null,null,null,null,null,null,null,null,null,null,null,null,null,null,null,null,null,{"$f":"LEN(I97)","v":87},"z",250]
[null,null,null,null,{"$f":"IF(B97=\"TAK\",\"pośredni dojazd do:\",\"\")","v":"pośredni dojazd do:"},null,null,null,"wymienić do jakich miejsc publicznych odcinek stanowi pośredni dojazd … (250 znaków)",null,null,null,null,null,null,null,null,null,null,null,null,null,null,null,null,null,{"$f":"LEN(I98)","v":84},"z",250]
["D.\n","Odcinek drogi przyczynia się do poprawy dostępności komunikacyjnej obszarów o niższym poziomie zamożności"]
[null,"TAK",null,null,"Opis - odcinek drogi przyczynia się do poprawy dostępności komunikacyjnej obszarów o niższym poziomie zamożności … (300 znaków)",null,null,null,null,null,null,null,null,null,null,null,null,null,null,null,null,null,null,null,null,null,{"$f":"LEN(E100)","v":127},"z",300]
["E.\n\n\n\n","Odcinek drogi stanowi dojazd do nieruchomości, na których zostały zrealizowane lub będą realizowane przez gminę lub związek międzygminny inwestycje mieszkaniowe w ramach programów społeczno - gospodarczych m.in.: mieszkania na wynajem, noclegownie, schroniska dla osób bezdomnych, mieszkania chronione (dojazd pośredni - położenie powyżej 200 m.b. od drogi, dojazd bezpośredni - położenie do 200 m.b. od drogi)"]
[null,"TAK",null,null,{"$f":"IF(B102=\"TAK\",\"bezpośredni dojazd do:\",\"\")","v":"bezpośredni dojazd do:"},null,null,null,"wymienić do jakich nieruchomości (inwestycje mieszkaniowe) odcinek stanowi bezpośredni dojazd … (250 znaków)",null,null,null,null,null,null,null,null,null,null,null,null,null,null,null,null,null,{"$f":"LEN(I102)","v":108},"z",250]
[null,null,null,null,{"$f":"IF(B102=\"TAK\",\"pośredni dojazd do:\",\"\")","v":"pośredni dojazd do:"},null,null,null,"wymienić do jakich nieruchomości (inwestycje mieszkaniowe)  odcinek stanowi pośredni dojazd … (250 znaków)",null,null,null,null,null,null,null,null,null,null,null,null,null,null,null,null,null,{"$f":"LEN(I103)","v":106},"z",250]
["F.\n","Odcinek drogi prowadzi do obiektu użyteczności publicznej objętego dofinansowaniem z programu Maluch+, Senior+, Rządowego Funduszu Inwestycji Lokalnych"]
[null,"TAK",null,null,"wymienić do jakich obiektów użyteczności publicznej prowadzi wnioskowany odcinek drogi … (250 znaków)",null,null,null,null,null,null,null,null,null,null,null,null,null,null,null,null,null,null,null,null,null,{"$f":"LEN(E105)","v":101},"z",250]
["G.\n\n","Bezpośrednio w ciągu drogi objętej zadaniem przebiega linia autobusowa objęta wsparciem z Funduszu Rozwoju Przewozów Autobusowych, lub realizowane są usługi transportu publicznego lub uchwalono planowany przebieg linii użyteczności publicznej"]
[null,"TAK",null,null,"podać, czy w ciągu drogi przebiega linia autobusowa objęta wsparciem z Funduszu Rozwoju Przewozów Autobusowych lub realizowane są usługi transportu publicznego lub uchwalono planowany przebieg linii użyteczności publicznej … (250 znaków)",null,null,null,null,null,null,null,null,null,null,null,null,null,null,null,null,null,null,null,null,null,{"$f":"LEN(E107)","v":237},"z",250]
[null,"Kryterium nr 5",null,null,null,"-","Poprawa dostępności do terenów gospodarczych i inwestycyjnych"]
["A.\n\n","Czy odcinek stanowi bezpośredni/pośredni dojazd do lokalnych ośrodków gospodarczych np. do strefy ekonomicznej, podmiotów gospodarczych, lokalnego targowiska (dojazd pośredni - położenie powyżej 200 m.b. od drogi, dojazd bezpośredni - położenie do 200 m.b. od drogi)"]
[null,"TAK",null,null,{"$f":"IF(B110=\"TAK\",\"bezpośredni dojazd do:\",\"\")","v":"bezpośredni dojazd do:"},null,null,null,"wymienić do jakich lokalnych ośrodków gospodarczych odcinek stanowi bezpośredni dojazd … (250 znaków)",null,null,null,null,null,null,null,null,null,null,null,null,null,null,null,null,null,{"$f":"LEN(I110)","v":101},"z",250]
[null,null,null,null,{"$f":"IF(B110=\"TAK\",\"pośredni dojazd do:\",\"\")","v":"pośredni dojazd do:"},null,null,null,"wymienić do jakich lokalnych ośrodków gospodarczych odcinek stanowi pośredni dojazd … (250 znaków)",null,null,null,null,null,null,null,null,null,null,null,null,null,null,null,null,null,{"$f":"LEN(I111)","v":98},"z",250]
["B.\n\n\n","Czy odcinek umożliwia bezpośredni/pośredni dojazd do terenów inwestycyjnych, rozumianych jako tereny przeznaczone w studium uwarunkowań przestrzennych, miejscowym planie zagospodarowania lub w decyzji lokalizacyjnej pod działalność gospodarczą (dojazd pośredni - położenie powyżej 200 m.b. od drogi, dojazd bezpośredni - położenie do 200 m.b. od drogi)"]
[null,"TAK",null,null,{"$f":"IF(B113=\"TAK\",\"bezpośredni dojazd do:\",\"\")","v":"bezpośredni dojazd do:"},null,null,null,"wymienić do jakich terenów inwestycyjnych gospodarczych odcinek stanowi bezpośredni dojazd … (250 znaków)",null,null,null,null,null,null,null,null,null,null,null,null,null,null,null,null,null,{"$f":"LEN(I113)","v":105},"z",250]
[null,null,null,null,{"$f":"IF(B113=\"TAK\",\"pośredni dojazd do:\",\"\")","v":"pośredni dojazd do:"},null,null,null,"wymienić do jakich terenów inwestycyjnych gospodarczych odcinek stanowi pośredni dojazd … (250 znaków)",null,null,null,null,null,null,null,null,null,null,null,null,null,null,null,null,null,{"$f":"LEN(I114)","v":102},"z",250]
["C.\n\n\n","Czy odcinek stanowi bezpośredni/pośredni dojazd do terenów, na których jest prowadzona produkcja rolna, sadownictwo, ogrodnictwo lub/i zlokalizowane są gospodarstwa agroturystyczne, ważne ze względu na specyfikę obszaru (dojazd pośredni - położenie powyżej 200 m.b. od drogi, dojazd bezpośredni - położenie do 200 m.b. od drogi)"]
[null,"TAK",null,null,{"$f":"IF(B116=\"TAK\",\"bezpośredni dojazd do:\",\"\")","v":"bezpośredni dojazd do:"},null,null,null,"wymienić do jakich terenów odcinek stanowi bezpośredni dojazd … (250 znaków)",null,null,null,null,null,null,null,null,null,null,null,null,null,null,null,null,null,{"$f":"LEN(I116)","v":76},"z",250]
[null,null,null,null,{"$f":"IF(B116=\"TAK\",\"pośredni dojazd do:\",\"\")","v":"pośredni dojazd do:"},null,null,null,"wymienić do jakich terenów odcinek stanowi bezpośredni dojazd … (250 znaków)",null,null,null,null,null,null,null,null,null,null,null,null,null,null,null,null,null,{"$f":"LEN(I117)","v":76},"z",250]
["12. ","OSOBY UPOWAŻNIONE DO UDZIELANIA WYJAŚNIEŃ KOMISJI"]
["Lp.","imię i nazwisko",null,null,null,null,null,null,null,null,"nr telefonu",null,null,null,null,null,null,"e-mail"]
[1]
[2]
[3]
["13. ","OŚWIADCZENIE WNIOSKODAWCY (ustawowego zarządcy drogi)"]
["Wnioskodawca oświadcza, że: "]
[null,"1)","dane i informacje zawarte we wniosku są prawidłowe i kompletne, "]
[null,"2)","zadanie obejmuje wyłącznie drogi publiczne,  "]
[null,"3)\n","jednostka zobowiązuje się do realizacji przedmiotowego zadania z zachowaniem odpowiedniego oznakowania i zastosowania urządzeń bezpieczeństwa i organizacji ruchu,"]
[null,"4)","zapewnione zostanie zabezpieczenie całości zadeklarowanego we wniosku wkładu własnego,"]
[null,"5)","do wniosku dołączone zostały załączniki:   "]
[null,null,"a)","kopia prawomocnej decyzji o pozwoleniu na budowę (obligatoryjnie)\nlub"]
[null,null,null,"kopia zgłoszenia robót budowlanych z poświadczeniem braku podstaw do wniesienia sprzeciwu na zgłoszenie wykonania robót budowlanych potwierdzone zaświadczeniem organu administracji architektoniczno-budowlanej lub pieczęcią organu administracji architektoniczno-budowlanej (obligatoryjnie),",null,null,null,null,null,null,null,null,null,null,null,null,null,null,null,null,null,null,null,"TAK"]
[null,null,"b)","czytelna mapa poglądowa z zaznaczonymi elementami mającymi wpływ na ocenę merytoryczną wniosku - dotyczy kryterium nr 4 i nr 5 (obligatoryjnie),",null,null,null,null,null,null,null,null,null,null,null,null,null,null,null,null,null,null,null,"TAK"]
[null,null,"c)","kopia strony projektu stałej organizacji ruchu, z której wynika, że projekt jest zatwierdzony (obligatoryjnie) \n",null,null,null,null,null,null,null,null,null,null,null,null,null,null,null,null,null,null,null,"TAK"]
[null,null,null,"lub \npismo organu uprawnionego do zatwierdzenia organizacji ruchu (obligatoryjnie),"]
[null,null,"d)","kopia kosztorysu inwestorskiego (obligatoryjnie),",null,null,null,null,null,null,null,null,null,null,null,null,null,null,null,null,null,null,null,"TAK"]
[null,null,"e)","kopia protokołu strat potwierdzonego przez Wojewodę Świętokrzyskiego - dotyczy kryterium nr 2 lit. E  (jeśli dotyczy)",null,null,null,null,null,null,null,null,null,null,null,null,null,null,null,null,null,null,null,"TAK"]
[null,null,"f)","informacja dotycząca komplementarności zadania z programami rządowymi z podaniem nazwy programu, numeru i daty umowy z Wojewodą lub umowy/umów wynikających z programów społeczno - gospodarczych - dotyczy kryterium nr 4 lit. F, G  (jeśli dotyczy), ",null,null,null,null,null,null,null,null,null,null,null,null,null,null,null,null,null,null,null,"TAK"]
[null,null,"g)","oświadczenie o przekazaniu danych o sieci dróg publicznych  do Generalnego Dyrektora Dróg Krajowych i Autostrad (obligatoryjnie).",null,null,null,null,null,null,null,null,null,null,null,null,null,null,null,null,null,null,null,"TAK"]
[]
["Ja, niżej podpisany zobowiązuję się do: "]
[null,"•  przeprowadzenia postępowania o zamówienie publiczne zgodnie z obowiązującymi przepisami \n   Prawa zamówień publicznych.     "]
["Podpisy i pieczątki osób upoważnionych z ramienia wnioskodawcy (wraz z podpisem Skarbnika/Głównego Księgowego) - ustawowy zarządca drogi"]